Workbook

Sheet soakaway
B1: version: 1.3. FREE Lite Version | O1: © 2012-2019 Damian Janicki
E2: YourSpreadsheets™ Your Office Address Goes Here www.YourSpreadsheets.co.uk Tel: 010 1234 567890 | Q2: Test project | AJ2: type: | AL2: geocellular units
W3: Revision | AL3: infilled pit or trench | AO3: alternative sizes: | AP3: TRUE
Q4: Job No: | T4: 22668 | W4: Page: | Y4: C/01 | AL4: perforated concrete ring | AP4: =IF(AP3=TRUE,1,0) -> 1
C5: Section: | E5: Something Somewhere | Q5: Prepared By: | T5: DJ | W5: Date: | Y5: =TODAY() -> 2019-06-22 | AJ5: selected: | AL5: =MATCH(I19,AL2:AL4) -> 1
AD6: Display Alternative Soakaway Sizes | AO6: base infiltration: | AP6: =IF(baseinfiltr>1,$M$27,0) -> 0.3
AJ7: sub-type: | AL7: circular pit around ring | AO7: infiltration rate: | AP7: =IF(infiltr=1,$M$33,$M$29) -> 4.429748361e-05
C8: ALTERNATIVE SOAKAWAY SIZES | P8: SUMMARY OF CALCULATIONS | AD8: SUMMARY: | AL8: square pit around ring
I9: trench soakaways | P9: critical design rainfall duration 'tcrit' = | W9: =INDEX(C40:D49,MATCH(W10,AN39:AN48,0),1) -> 120 | Y9: min | AD9: =W12 -> 0.7900529379 | AE9: storage volume | AJ9: selected: | AL9: =MATCH(I20,AL7:AL8) -> 2 | AX9: ring alternative (square pit):
C10: width of trench [mm]: | I10: 450 | K10: 600 | M10: 900 | P10: required storage volume 'Vreq' = | W10: =MAX(Z40:AA49) -> 10.07317496 | Y10: m3 | AD10: =W14 -> 0.1348715762 | AE10: 50% discharge time | AQ10: trench alternative: | AY10: =I13 -> 1050 | BG10: =K13 -> 1350 | BO10: =M13 -> 1500
C11: required trench length [m]: | I11: =AR23 -> 16.52635997 | K11: =AS23 -> 13.31174865 | M11: =AT23 -> 9.562537074 | P11: provided storage volume 'Vprov' = | W11: =IF(AND(type=3,subtype=1),W*(PI()*(Dint/2000)^2*1.25+(PI()*(L/2)^2*1.25-PI()*((Dint+100)/2000)^2*1.25)*_vol1/100),IF(AND(type=3,subtype=2),W*(PI()*(Dint/2000)^2*1.25+(1.25*L^2-PI()*((Dint+100)/2000)^2*1.25)*_vol1/100),1.25*L*W*_vol1/100)) -> 12.75 | Y11: m3 | AJ11: site: | AL11: England and Wales | AR11: =I10/1000 -> 0.45 | AS11: =K10/1000 -> 0.6 | AT11: =M10/1000 -> 0.9 | AY11: A | AZ11: B | BA11: C | BC11: X1 | BD11: X2 | BE11: final value | BG11: A | BH11: B | BI11: C | BK11: X1 | BL11: X2 | BM11: final value | BO11: A | BP11: B | BQ11: C | BS11: X1 | BT11: X2 | BU11: final value
I12: ring soakaways | P12: utilisation factor = | W12: =W10/W11 -> 0.7900529379 | Y12: =IF(W11>=W10,".OK",".NOT OK") -> .OK | AD12: =IF(OR($AD$13<>"",$AD$14<>""),"REVIEW THESE VALUES:","") ->  | AL12: Scotland and N Ireland | AP12: 5 | AQ12: =(MAX(L40,Q40,V40)) -> 4.1304276 | AR12: =(AQ12-((0.5*$AR$11*1.25*2)*(inf*C40*60)))/((($AR$11*binf+0.5*1.25*2)*(inf*C40*60))+(1.25*$AR$11*_vol1/100)) -> 8.303521198 | AS12: =(AQ12-((0.5*$AS$11*1.25*2)*(inf*C40*60)))/((($AS$11*binf+0.5*1.25*2)*(inf*C40*60))+(1.25*$AS$11*_vol1/100)) -> 6.276371581 | AT12: =(AQ12-((0.5*$AT$11*1.25*2)*(inf*C40*60)))/((($AT$11*binf+0.5*1.25*2)*(inf*C40*60))+(1.25*$AT$11*_vol1/100)) -> 4.214735689 | AW12: 5 | AX12: =(MAX(L40,Q40,V40)) -> 4.1304276 | AY12: =-(W*1.25*_vol1/100+W*binf*inf*$C40*60) -> -3.199460321 | AZ12: =-(0.5*1.25*4*W*inf*$C40*60) -> -0.09966933812 | BA12: =$AX12+(W*PI()*(($AY$10+100)/2000)^2*1.25*_vol1/100-W*PI()*($AY$10/2000)^2*1.25) -> 4.194118482 | BB12: =IF(AZ12^2-4*AY12*BA12<0,1,0) -> 0 | BC12: =IF(BB12=1,0,(-AZ12+(AZ12^2-4*AY12*BA12)^0.5)/(2*AY12)) -> -1.160619941 | BD12: =IF(BB12=1,0,(-AZ12-(AZ12^2-4*AY12*BA12)^0.5)/(2*AY12)) -> 1.129468019 | BE12: =MAX(BC12:BD21) -> 1.703612502 | BG12: =-(W*1.25*_vol1/100+W*binf*inf*$C40*60) -> -3.199460321 | BH12: =-(0.5*1.25*4*W*inf*$C40*60) -> -0.09966933812 | BI12: =$AX12+(W*PI()*(($BG$10+100)/2000)^2*1.25*_vol1/100-W*PI()*($BG$10/2000)^2*1.25) -> 4.026239625 | BJ12: =IF(BH12^2-4*BG12*BI12<0,1,0) -> 0 | BK12: =IF(BJ12=1,0,(-BH12+(BH12^2-4*BG12*BI12)^0.5)/(2*BG12)) -> -1.137473784 | BL12: =IF(BJ12=1,0,(-BH12-(BH12^2-4*BG12*BI12)^0.5)/(2*BG12)) -> 1.106321862 | BM12: =MAX(BK12:BL21) -> 1.690183103 | BO12: =-(W*1.25*_vol1/100+W*binf*inf*$C40*60) -> -3.199460321 | BP12: =-(0.5*1.25*4*W*inf*$C40*60) -> -0.09966933812 | BQ12: =$AX12+(W*PI()*(($BO$10+100)/2000)^2*1.25*_vol1/100-W*PI()*($BO$10/2000)^2*1.25) -> 3.91247961 | BR12: =IF(BP12^2-4*BO12*BQ12<0,1,0) -> 0 | BS12: =IF(BR12=1,0,(-BP12+(BP12^2-4*BO12*BQ12)^0.5)/(2*BO12)) -> -1.121513899 | BT12: =IF(BR12=1,0,(-BP12-(BP12^2-4*BO12*BQ12)^0.5)/(2*BO12)) -> 1.090361977 | BU12: =MAX(BS12:BT21) -> 1.681027821
C13: diameter of ring [mm]: | I13: =IF(ring=1,AL31,IF(OR(ring=10,ring=9,ring=8),AL36,INDEX(AL30:AL39,ring-1))) -> 1050 | K13: =IF(ring=1,AL32,IF(OR(ring=10,ring=9),AL37,INDEX(AL30:AL39,ring+1))) -> 1350 | M13: =IF(ring=1,AL33,IF(ring=10,AL38,IF(ring=9,AL39,INDEX(AL30:AL39,ring+2)))) -> 1500 | P13: required time to discharge 50% 't50' = | W13: =W11*0.5*IF(type=3,1/W,1)/(IF(AND(type=3,subtype=1),(PI()*(L/2)^2*binf+0.5*(2*PI()*(L/2)*1.25))*(inf*60*60),IF(AND(type=3,subtype=2),((L^2)*binf+0.5*(4*L*1.25))*(inf*60*60),(L*W*binf+0.5*(L*1.25*2+W*1.25*2))*(inf*60*60)))) -> 3.236917828 | Y13: hours | AD13: =IF(OR(AND(type<>1,$Y$24>40),AND(type=1,$Y$24<70)),"'free volume in infill aggregate' in the 'Soakaway Data'", IF(OR(AND(type<>1,$M$27<>"No"),AND(type=1,NOT(AND($M$27>=20%,$M$27<=40%)))),"'allowance for infiltration through soakaway base'","")) ->  | AJ13: selected: | AL13: =MATCH(I18,AL11:AL12) -> 1 | AP13: 10 | AQ13: =(MAX(L41,Q41,V41)) -> 5.8896396 | AR13: =(AQ13-((0.5*$AR$11*1.25*2)*(inf*C41*60)))/((($AR$11*binf+0.5*1.25*2)*(inf*C41*60))+(1.25*$AR$11*_vol1/100)) -> 11.40857663 | AS13: =(AQ13-((0.5*$AS$11*1.25*2)*(inf*C41*60)))/((($AS$11*binf+0.5*1.25*2)*(inf*C41*60))+(1.25*$AS$11*_vol1/100)) -> 8.68933059 | AT13: =(AQ13-((0.5*$AT$11*1.25*2)*(inf*C41*60)))/((($AT$11*binf+0.5*1.25*2)*(inf*C41*60))+(1.25*$AT$11*_vol1/100)) -> 5.879439005 | AW13: 10 | AX13: 5.8896396 | AY13: =-(W*1.25*_vol1/100+W*binf*inf*$C41*60) -> -3.211420641 | AZ13: =-(0.5*1.25*4*W*inf*$C41*60) -> -0.1993386762 | BA13: =$AX13+(W*PI()*(($AY$10+100)/2000)^2*1.25*_vol1/100-W*PI()*($AY$10/2000)^2*1.25) -> 5.953330482 | BB13: =IF(AZ13^2-4*AY13*BA13<0,1,0) -> 0 | BC13: =IF(BB13=1,0,(-AZ13+(AZ13^2-4*AY13*BA13)^0.5)/(2*AY13)) -> -1.392932699 | BD13: =IF(BB13=1,0,(-AZ13-(AZ13^2-4*AY13*BA13)^0.5)/(2*AY13)) -> 1.330860894 | BE13: =(PI()*(AY10/2000)^2*1.25+(1.25*BE12^2-PI()*((AY10+100)/2000)^2*1.25)*_vol1/100)*0.5/(((BE12^2)*binf+0.5*(4*BE12*1.25))*(inf*60*60)) -> 1.871824121 | BG13: =-(W*1.25*_vol1/100+W*binf*inf*$C41*60) -> -3.211420641 | BH13: =-(0.5*1.25*4*W*inf*$C41*60) -> -0.1993386762 | BI13: =$AX13+(W*PI()*(($BG$10+100)/2000)^2*1.25*_vol1/100-W*PI()*($BG$10/2000)^2*1.25) -> 5.785451625 | BJ13: =IF(BH13^2-4*BG13*BI13<0,1,0) -> 0 | BK13: =IF(BJ13=1,0,(-BH13+(BH13^2-4*BG13*BI13)^0.5)/(2*BG13)) -> -1.373603335 | BL13: =IF(BJ13=1,0,(-BH13-(BH13^2-4*BG13*BI13)^0.5)/(2*BG13)) -> 1.31153153 | BM13: =(PI()*(BG10/2000)^2*1.25+(1.25*BM12^2-PI()*((BG10+100)/2000)^2*1.25)*_vol1/100)*0.5/(((BM12^2)*binf+0.5*(4*BM12*1.25))*(inf*60*60)) -> 1.893872513 | BO13: =-(W*1.25*_vol1/100+W*binf*inf*$C41*60) -> -3.211420641 | BP13: =-(0.5*1.25*4*W*inf*$C41*60) -> -0.1993386762 | BQ13: =$AX13+(W*PI()*(($BO$10+100)/2000)^2*1.25*_vol1/100-W*PI()*($BO$10/2000)^2*1.25) -> 5.67169161 | BR13: =IF(BP13^2-4*BO13*BQ13<0,1,0) -> 0 | BS13: =IF(BR13=1,0,(-BP13+(BP13^2-4*BO13*BQ13)^0.5)/(2*BO13)) -> -1.360345396 | BT13: =IF(BR13=1,0,(-BP13-(BP13^2-4*BO13*BQ13)^0.5)/(2*BO13)) -> 1.298273591 | BU13: =(PI()*(BO10/2000)^2*1.25+(1.25*BU12^2-PI()*((BO10+100)/2000)^2*1.25)*_vol1/100)*0.5/(((PI()*(BU12/2)^2)*binf+0.5*(2*PI()*(BU12/2)*1.25))*(inf*60*60)) -> 2.43075505
G14: =IF(AND(type=3,subtype=2),"required pit side length","required pit diameter") -> required pit diameter | H14: [m]: | I14: =IF(ISERROR(IF(AND(type=3,subtype=2),BE21,BE35)),"N/A",IF(AND(type=3,subtype=2),BE21,BE35)) -> 1.952844043 | K14: =IF(ISERROR(IF(AND(type=3,subtype=2),BM21,BM35)),"N/A",IF(AND(type=3,subtype=2),BM21,BM35)) -> 1.939414077 | M14: =IF(ISERROR(IF(AND(type=3,subtype=2),BU21,BU35)),"N/A",IF(AND(type=3,subtype=2),BU21,BU35)) -> 1.930268435 | P14: utilisation factor = | W14: =W13/24 -> 0.1348715762 | Y14: =IF(W13<=24,".OK",".NOT OK") -> .OK | AD14: =IF(AND( OR(AND(type<>1,$Y$24>40),AND(type=1,$Y$24<70)), OR(AND(type<>1,$M$27<>"No"),AND(type=1,NOT(AND($M$27>=20%,$M$27<=40%)))) ),"'allowance for infiltration through soakaway base'","") ->  | AP14: 15 | AQ14: 7.23996 | AR14: =(AQ14-((0.5*$AR$11*1.25*2)*(inf*C42*60)))/((($AR$11*binf+0.5*1.25*2)*(inf*C42*60))+(1.25*$AR$11*_vol1/100)) -> 13.53266183 | AS14: =(AQ14-((0.5*$AS$11*1.25*2)*(inf*C42*60)))/((($AS$11*binf+0.5*1.25*2)*(inf*C42*60))+(1.25*$AS$11*_vol1/100)) -> 10.38149236 | AT14: =(AQ14-((0.5*$AT$11*1.25*2)*(inf*C42*60)))/((($AT$11*binf+0.5*1.25*2)*(inf*C42*60))+(1.25*$AT$11*_vol1/100)) -> 7.07588747 | AW14: 15 | AX14: 7.23996 | AY14: =-(W*1.25*_vol1/100+W*binf*inf*$C42*60) -> -3.223380962 | AZ14: =-(0.5*1.25*4*W*inf*$C42*60) -> -0.2990080143 | BA14: =$AX14+(W*PI()*(($AY$10+100)/2000)^2*1.25*_vol1/100-W*PI()*($AY$10/2000)^2*1.25) -> 7.303650882 | BB14: 0 | BC14: -1.552364737 | BD14: 1.459602505 | BE14: =BE13/24 -> 0.0779926717 | BG14: =-(W*1.25*_vol1/100+W*binf*inf*$C42*60) -> -3.223380962 | BH14: =-(0.5*1.25*4*W*inf*$C42*60) -> -0.2990080143 | BI14: =$AX14+(W*PI()*(($BG$10+100)/2000)^2*1.25*_vol1/100-W*PI()*($BG$10/2000)^2*1.25) -> 7.135772025 | BJ14: 0 | BK14: -1.534972753 | BL14: 1.442210521 | BM14: =BM13/24 -> 0.07891135469 | BO14: =-(W*1.25*_vol1/100+W*binf*inf*$C42*60) -> -3.223380962 | BP14: =-(0.5*1.25*4*W*inf*$C42*60) -> -0.2990080143 | BQ14: =$AX14+(W*PI()*(($BO$10+100)/2000)^2*1.25*_vol1/100-W*PI()*($BO$10/2000)^2*1.25) -> 7.02201201 | BR14: 0 | BS14: -1.523070969 | BT14: 1.430308736 | BU14: =BU13/24 -> 0.1012814604
C15: * Based on effective depth and number of pits as in Soakaway Data table | P15: =IF(W12=0,"SOAKAWAY IS NOT REQUIRED",IF(AND(W>1,AD10>1),"* Discharge time is assessed per soakaway rather than a group","")) ->  | AJ15: climate change: | AL15: No | AM15: infiltration through base: | AN15: No | AP15: 30 | AQ15: 9.3387996 | AR15: =(AQ15-((0.5*$AR$11*1.25*2)*(inf*C43*60)))/((($AR$11*binf+0.5*1.25*2)*(inf*C43*60))+(1.25*$AR$11*_vol1/100)) -> 15.79103249 | AS15: =(AQ15-((0.5*$AS$11*1.25*2)*(inf*C43*60)))/((($AS$11*binf+0.5*1.25*2)*(inf*C43*60))+(1.25*$AS$11*_vol1/100)) -> 12.34694582 | AT15: =(AQ15-((0.5*$AT$11*1.25*2)*(inf*C43*60)))/((($AT$11*binf+0.5*1.25*2)*(inf*C43*60))+(1.25*$AT$11*_vol1/100)) -> 8.584263857 | AW15: 30 | AX15: 9.3387996 | AY15: =-(W*1.25*_vol1/100+W*binf*inf*$C43*60) -> -3.259261923 | AZ15: =-(0.5*1.25*4*W*inf*$C43*60) -> -0.5980160287 | BA15: =$AX15+(W*PI()*(($AY$10+100)/2000)^2*1.25*_vol1/100-W*PI()*($AY$10/2000)^2*1.25) -> 9.402490482 | BB15: 0 | BC15: -1.792702246 | BD15: 1.609220205 | BG15: =-(W*1.25*_vol1/100+W*binf*inf*$C43*60) -> -3.259261923 | BH15: =-(0.5*1.25*4*W*inf*$C43*60) -> -0.5980160287 | BI15: =$AX15+(W*PI()*(($BG$10+100)/2000)^2*1.25*_vol1/100-W*PI()*($BG$10/2000)^2*1.25) -> 9.234611625 | BJ15: 0 | BK15: -1.777493329 | BL15: 1.594011289 | BO15: =-(W*1.25*_vol1/100+W*binf*inf*$C43*60) -> -3.259261923 | BP15: =-(0.5*1.25*4*W*inf*$C43*60) -> -0.5980160287 | BQ15: =$AX15+(W*PI()*(($BO$10+100)/2000)^2*1.25*_vol1/100-W*PI()*($BO$10/2000)^2*1.25) -> 9.12085161 | BR15: 0 | BS15: -1.767108811 | BT15: 1.583626771
AL16: 0.05 | AN16: 0.1 | AP16: 60 | AQ16: 11.6415 | AR16: =(AQ16-((0.5*$AR$11*1.25*2)*(inf*C44*60)))/((($AR$11*binf+0.5*1.25*2)*(inf*C44*60))+(1.25*$AR$11*_vol1/100)) -> 16.52635997 | AS16: =(AQ16-((0.5*$AS$11*1.25*2)*(inf*C44*60)))/((($AS$11*binf+0.5*1.25*2)*(inf*C44*60))+(1.25*$AS$11*_vol1/100)) -> 13.31174865 | AT16: =(AQ16-((0.5*$AT$11*1.25*2)*(inf*C44*60)))/((($AT$11*binf+0.5*1.25*2)*(inf*C44*60))+(1.25*$AT$11*_vol1/100)) -> 9.562537074 | AW16: 60 | AX16: 11.6415 | AY16: =-(W*1.25*_vol1/100+W*binf*inf*$C44*60) -> -3.331023847 | AZ16: =-(0.5*1.25*4*W*inf*$C44*60) -> -1.196032057 | BA16: =$AX16+(W*PI()*(($AY$10+100)/2000)^2*1.25*_vol1/100-W*PI()*($AY$10/2000)^2*1.25) -> 11.70519088 | BB16: 0 | BC16: -2.062670892 | BD16: 1.703612502 | BE16: =0.5*1.25*_vol1/100-24*binf*inf*60*60 -> -0.6169407751 | BF16: A | BG16: =-(W*1.25*_vol1/100+W*binf*inf*$C44*60) -> -3.331023847 | BH16: =-(0.5*1.25*4*W*inf*$C44*60) -> -1.196032057 | BI16: =$AX16+(W*PI()*(($BG$10+100)/2000)^2*1.25*_vol1/100-W*PI()*($BG$10/2000)^2*1.25) -> 11.53731202 | BJ16: 0 | BK16: -2.049241492 | BL16: 1.690183103 | BM16: =0.5*1.25*_vol1/100-24*binf*inf*60*60 -> -0.6169407751 | BN16: A | BO16: =-(W*1.25*_vol1/100+W*binf*inf*$C44*60) -> -3.331023847 | BP16: =-(0.5*1.25*4*W*inf*$C44*60) -> -1.196032057 | BQ16: =$AX16+(W*PI()*(($BO$10+100)/2000)^2*1.25*_vol1/100-W*PI()*($BO$10/2000)^2*1.25) -> 11.42355201 | BR16: 0 | BS16: -2.040086211 | BT16: 1.681027821 | BU16: =0.5*1.25*_vol1/100-24*binf*inf*60*60 -> -0.6169407751 | BV16: A
C17: GENERAL DATA | P17: SOAKAWAY DATA | AL17: 0.1 | AN17: 0.2 | AP17: 120 | AQ17: 14.0121072 | AR17: =(AQ17-((0.5*$AR$11*1.25*2)*(inf*C45*60)))/((($AR$11*binf+0.5*1.25*2)*(inf*C45*60))+(1.25*$AR$11*_vol1/100)) -> 15.03784251 | AS17: =(AQ17-((0.5*$AS$11*1.25*2)*(inf*C45*60)))/((($AS$11*binf+0.5*1.25*2)*(inf*C45*60))+(1.25*$AS$11*_vol1/100)) -> 12.59424459 | AT17: =(AQ17-((0.5*$AT$11*1.25*2)*(inf*C45*60)))/((($AT$11*binf+0.5*1.25*2)*(inf*C45*60))+(1.25*$AT$11*_vol1/100)) -> 9.47460296 | AW17: 120 | AX17: 14.0121072 | AY17: =-(W*1.25*_vol1/100+W*binf*inf*$C45*60) -> -3.474547694 | AZ17: =-(0.5*1.25*4*W*inf*$C45*60) -> -2.392064115 | BA17: =$AX17+(W*PI()*(($AY$10+100)/2000)^2*1.25*_vol1/100-W*PI()*($AY$10/2000)^2*1.25) -> 14.07579808 | BB17: 0 | BC17: -2.386188661 | BD17: 1.697735278 | BE17: =-24*0.5*4*1.25*inf*60*60 -> -9.568256459 | BF17: B | BG17: =-(W*1.25*_vol1/100+W*binf*inf*$C45*60) -> -3.474547694 | BH17: =-(0.5*1.25*4*W*inf*$C45*60) -> -2.392064115 | BI17: =$AX17+(W*PI()*(($BG$10+100)/2000)^2*1.25*_vol1/100-W*PI()*($BG$10/2000)^2*1.25) -> 13.90791922 | BJ17: 0 | BK17: -2.374323225 | BL17: 1.685869841 | BM17: =-24*0.5*4*1.25*inf*60*60 -> -9.568256459 | BN17: B | BO17: =-(W*1.25*_vol1/100+W*binf*inf*$C45*60) -> -3.474547694 | BP17: =-(0.5*1.25*4*W*inf*$C45*60) -> -2.392064115 | BQ17: =$AX17+(W*PI()*(($BO$10+100)/2000)^2*1.25*_vol1/100-W*PI()*($BO$10/2000)^2*1.25) -> 13.79415921 | BR17: 0 | BS17: -2.366243254 | BT17: 1.67778987 | BU17: =-24*0.5*4*1.25*inf*60*60 -> -9.568256459 | BV17: B
C18: site location: | I18: England and Wales | P18: =IF(type=3,"number of ring soakaways:","soakaway width 'W' [m] =") -> soakaway width 'W' [m] = | Y18: 3 | AD18: =IF(AND(type=3,INT(W)<>W),"<- change the decimal number to integer","") ->  | AL18: 0.15 | AN18: 0.3 | AP18: 240 | AQ18: 16.3655856 | AR18: =(AQ18-((0.5*$AR$11*1.25*2)*(inf*C46*60)))/((($AR$11*binf+0.5*1.25*2)*(inf*C46*60))+(1.25*$AR$11*_vol1/100)) -> 11.75590949 | AS18: =(AQ18-((0.5*$AS$11*1.25*2)*(inf*C46*60)))/((($AS$11*binf+0.5*1.25*2)*(inf*C46*60))+(1.25*$AS$11*_vol1/100)) -> 10.25194654 | AT18: =(AQ18-((0.5*$AT$11*1.25*2)*(inf*C46*60)))/((($AT$11*binf+0.5*1.25*2)*(inf*C46*60))+(1.25*$AT$11*_vol1/100)) -> 8.125296303 | AW18: 240 | AX18: 16.3655856 | AY18: =-(W*1.25*_vol1/100+W*binf*inf*$C46*60) -> -3.761595388 | AZ18: =-(0.5*1.25*4*W*inf*$C46*60) -> -4.78412823 | BA18: =$AX18+(W*PI()*(($AY$10+100)/2000)^2*1.25*_vol1/100-W*PI()*($AY$10/2000)^2*1.25) -> 16.42927648 | BB18: 0 | BC18: -2.820414228 | BD18: 1.548579345 | BE18: =0.5*PI()*(AY10/2000)^2*1.25-0.5*PI()*((AY10+100)/2000)^2*1.25*_vol1/100 -> -0.01061514705 | BF18: C | BG18: =-(W*1.25*_vol1/100+W*binf*inf*$C46*60) -> -3.761595388 | BH18: =-(0.5*1.25*4*W*inf*$C46*60) -> -4.78412823 | BI18: =$AX18+(W*PI()*(($BG$10+100)/2000)^2*1.25*_vol1/100-W*PI()*($BG$10/2000)^2*1.25) -> 16.26139762 | BJ18: 0 | BK18: -2.810175134 | BL18: 1.538340251 | BM18: =0.5*PI()*(BG10/2000)^2*1.25-0.5*PI()*((BG10+100)/2000)^2*1.25*_vol1/100 -> 0.01736466252 | BN18: C | BO18: =-(W*1.25*_vol1/100+W*binf*inf*$C46*60) -> -3.761595388 | BP18: =-(0.5*1.25*4*W*inf*$C46*60) -> -4.78412823 | BQ18: =$AX18+(W*PI()*(($BO$10+100)/2000)^2*1.25*_vol1/100-W*PI()*($BO$10/2000)^2*1.25) -> 16.14763761 | BR18: 0 | BS18: -2.803209305 | BT18: 1.531374422 | BU18: =0.5*PI()*(BO10/2000)^2*1.25-0.5*PI()*((BO10+100)/2000)^2*1.25*_vol1/100 -> 0.03632466506 | BV18: C
C19: soakaway type: | I19: geocellular units | P19: =IF(AND(type=3,subtype=2),"square pit side length 'L' [m] =",IF(AND(type=3,subtype=1),"circular pit diameter 'D' [m] =","soakaway length 'L' [m] =")) -> soakaway length 'L' [m] = | Y19: 4 | AL19: 0.2 | AN19: 0.4 | AP19: 360 | AQ19: 17.8383699 | AR19: =(AQ19-((0.5*$AR$11*1.25*2)*(inf*C47*60)))/((($AR$11*binf+0.5*1.25*2)*(inf*C47*60))+(1.25*$AR$11*_vol1/100)) -> 9.593457479 | AS19: =(AQ19-((0.5*$AS$11*1.25*2)*(inf*C47*60)))/((($AS$11*binf+0.5*1.25*2)*(inf*C47*60))+(1.25*$AS$11*_vol1/100)) -> 8.535789384 | AT19: =(AQ19-((0.5*$AT$11*1.25*2)*(inf*C47*60)))/((($AT$11*binf+0.5*1.25*2)*(inf*C47*60))+(1.25*$AT$11*_vol1/100)) -> 6.953359056 | AW19: 360 | AX19: 17.8383699 | AY19: =-(W*1.25*_vol1/100+W*binf*inf*$C47*60) -> -4.048643081 | AZ19: =-(0.5*1.25*4*W*inf*$C47*60) -> -7.176192344 | BA19: =$AX19+(W*PI()*(($AY$10+100)/2000)^2*1.25*_vol1/100-W*PI()*($AY$10/2000)^2*1.25) -> 17.90206078 | BB19: 0 | BC19: -3.168170445 | BD19: 1.395677242 | BE19: =(-BE17+(BE17^2-4*BE16*BE18)^0.5)/(2*BE16) -> -15.50808822 | BF19: X1 | BG19: =-(W*1.25*_vol1/100+W*binf*inf*$C47*60) -> -4.048643081 | BH19: =-(0.5*1.25*4*W*inf*$C47*60) -> -7.176192344 | BI19: =$AX19+(W*PI()*(($BG$10+100)/2000)^2*1.25*_vol1/100-W*PI()*($BG$10/2000)^2*1.25) -> 17.73418192 | BJ19: 0 | BK19: -3.159066649 | BL19: 1.386573445 | BM19: =(-BM17+(BM17^2-4*BM16*BM18)^0.5)/(2*BM16) -> -15.51101232 | BN19: X1 | BO19: =-(W*1.25*_vol1/100+W*binf*inf*$C47*60) -> -4.048643081 | BP19: =-(0.5*1.25*4*W*inf*$C47*60) -> -7.176192344 | BQ19: =$AX19+(W*PI()*(($BO$10+100)/2000)^2*1.25*_vol1/100-W*PI()*($BO$10/2000)^2*1.25) -> 17.62042191 | BR19: 0 | BS19: -3.152876845 | BT19: 1.380383642 | BU19: =(-BU17+(BU17^2-4*BU16*BU18)^0.5)/(2*BU16) -> -15.51299316 | BV19: X1
C20: pit shape: | I20: square pit around ring | P20: soakaway ring internal diameter 'Dint' [mm] = | Y20: 1200 | AL20: 0.25 | AN20: 0.5 | AP20: 600 | AQ20: 19.7385552 | AR20: =(AQ20-((0.5*$AR$11*1.25*2)*(inf*C48*60)))/((($AR$11*binf+0.5*1.25*2)*(inf*C48*60))+(1.25*$AR$11*_vol1/100)) -> 7.012635276 | AS20: =(AQ20-((0.5*$AS$11*1.25*2)*(inf*C48*60)))/((($AS$11*binf+0.5*1.25*2)*(inf*C48*60))+(1.25*$AS$11*_vol1/100)) -> 6.354674316 | AT20: =(AQ20-((0.5*$AT$11*1.25*2)*(inf*C48*60)))/((($AT$11*binf+0.5*1.25*2)*(inf*C48*60))+(1.25*$AT$11*_vol1/100)) -> 5.308698608 | AW20: 600 | AX20: 19.7385552 | AY20: =-(W*1.25*_vol1/100+W*binf*inf*$C48*60) -> -4.622738469 | AZ20: =-(0.5*1.25*4*W*inf*$C48*60) -> -11.96032057 | BA20: =$AX20+(W*PI()*(($AY$10+100)/2000)^2*1.25*_vol1/100-W*PI()*($AY$10/2000)^2*1.25) -> 19.80224608 | BB20: 0 | BC20: -3.734370882 | BD20: 1.147090495 | BE20: =(-BE17-(BE17^2-4*BE16*BE18)^0.5)/(2*BE16) -> -0.001109492261 | BF20: X2 | BG20: =-(W*1.25*_vol1/100+W*binf*inf*$C48*60) -> -4.622738469 | BH20: =-(0.5*1.25*4*W*inf*$C48*60) -> -11.96032057 | BI20: =$AX20+(W*PI()*(($BG$10+100)/2000)^2*1.25*_vol1/100-W*PI()*($BG$10/2000)^2*1.25) -> 19.63436722 | BJ20: 0 | BK20: -3.726919956 | BL20: 1.13963957 | BM20: =(-BM17-(BM17^2-4*BM16*BM18)^0.5)/(2*BM16) -> 0.001814607617 | BN20: X2 | BO20: =-(W*1.25*_vol1/100+W*binf*inf*$C48*60) -> -4.622738469 | BP20: =-(0.5*1.25*4*W*inf*$C48*60) -> -11.96032057 | BQ20: =$AX20+(W*PI()*(($BO$10+100)/2000)^2*1.25*_vol1/100-W*PI()*($BO$10/2000)^2*1.25) -> 19.52060721 | BR20: 0 | BS20: -3.721857978 | BT20: 1.134577592 | BU20: =(-BU17-(BU17^2-4*BU16*BU18)^0.5)/(2*BU16) -> 0.003795443604 | BV20: X2
C21: impermeable area drained to soakaway 'A' [m2] = | M21: 300 | P21: total depth from ground level 'Db' [m] = | Y21: 1.75 | AL21: 0.3 | AN21: 0.6 | AP21: 1440 | AQ21: 23.3519832 | AR21: =(AQ21-((0.5*$AR$11*1.25*2)*(inf*C49*60)))/((($AR$11*binf+0.5*1.25*2)*(inf*C49*60))+(1.25*$AR$11*_vol1/100)) -> 3.668342097 | AS21: =(AQ21-((0.5*$AS$11*1.25*2)*(inf*C49*60)))/((($AS$11*binf+0.5*1.25*2)*(inf*C49*60))+(1.25*$AS$11*_vol1/100)) -> 3.351830972 | AT21: =(AQ21-((0.5*$AT$11*1.25*2)*(inf*C49*60)))/((($AT$11*binf+0.5*1.25*2)*(inf*C49*60))+(1.25*$AT$11*_vol1/100)) -> 2.811776047 | AW21: 1440 | AX21: 23.3519832 | AY21: =-(W*1.25*_vol1/100+W*binf*inf*$C49*60) -> -6.632072325 | AZ21: =-(0.5*1.25*4*W*inf*$C49*60) -> -28.70476938 | BA21: =$AX21+(W*PI()*(($AY$10+100)/2000)^2*1.25*_vol1/100-W*PI()*($AY$10/2000)^2*1.25) -> 23.41567408 | BB21: 0 | BC21: -5.030085898 | BD21: 0.7019109368 | BE21: =IF(BE14<=1,BE12,IF(BE12>MAX(BE19,BE20),"N/A",MAX(BE19,BE20))) -> 1.703612502 | BF21: final | BG21: =-(W*1.25*_vol1/100+W*binf*inf*$C49*60) -> -6.632072325 | BH21: =-(0.5*1.25*4*W*inf*$C49*60) -> -28.70476938 | BI21: =$AX21+(W*PI()*(($BG$10+100)/2000)^2*1.25*_vol1/100-W*PI()*($BG$10/2000)^2*1.25) -> 23.24779522 | BJ21: 0 | BK21: -5.025666371 | BL21: 0.6974914098 | BM21: =IF(BM14<=1,BM12,IF(BM12>MAX(BM19,BM20),"N/A",MAX(BM19,BM20))) -> 1.690183103 | BN21: final | BO21: =-(W*1.25*_vol1/100+W*binf*inf*$C49*60) -> -6.632072325 | BP21: =-(0.5*1.25*4*W*inf*$C49*60) -> -28.70476938 | BQ21: =$AX21+(W*PI()*(($BO$10+100)/2000)^2*1.25*_vol1/100-W*PI()*($BO$10/2000)^2*1.25) -> 23.13403521 | BR21: 0 | BS21: -5.022667676 | BT21: 0.6944927149 | BU21: =IF(BU14<=1,BU12,IF(BU12>MAX(BU19,BU20),"N/A",MAX(BU19,BU20))) -> 1.681027821 | BV21: final
C22: 60 min rainfall depth of 5 year return period 'R' [mm] = | M22: 15 | P22: depth to drain invert level 'Dd' [m] = | Y22: 0.5 | AL22: 0.35 | AN22: 0.7 | AQ22: based on emptying time | AR22: =AR11*24*0.5*1.25*2*inf*60*60/(AR11*1.25*_vol1/100*0.5-AR11*24*binf*(inf*60*60)-24*0.5*1.25*2*inf*60*60) -> -0.4253187202 | AS22: =AS11*24*0.5*1.25*2*inf*60*60/(AS11*1.25*_vol1/100*0.5-AS11*24*binf*(inf*60*60)-24*0.5*1.25*2*inf*60*60) -> -0.5569099599 | AT22: =AT11*24*0.5*1.25*2*inf*60*60/(AT11*1.25*_vol1/100*0.5-AT11*24*binf*(inf*60*60)-24*0.5*1.25*2*inf*60*60) -> -0.8064081405
C23: M5-60 to M5-2d rainfall ratio 'r' = | M23: 0.5 | P23: soakaway effective depth 'Deff' [m] = | Y23: 1.25 | AL23: 0.4 | AN23: 0.8 | AQ23: final length | AR23: =IF(AR22<=0,MAX(AR12:AR21),IF(AR22<MAX(AR12:AR21),"N/A",MAX(AR12:AR21))) -> 16.52635997 | AS23: =IF(AS22<=0,MAX(AS12:AS21),IF(AS22<MAX(AS12:AS21),"N/A",MAX(AS12:AS21))) -> 13.31174865 | AT23: =IF(AT22<=0,MAX(AT12:AT21),IF(AT22<MAX(AT12:AT21),"N/A",MAX(AT12:AT21))) -> 9.562537074 | AX23: ring alternative (circular pit):
C24: allowance for climate change: | M24: 0.3 | P24: free volume in infill aggregate [%] = | Y24: 85 | AJ24: selected cliamte change: | AL24: =IF($M$24="No",1,IF($M$24>0%,2,"N/A")) -> 2 | AN24: 0.9 | AY24: =I13 -> 1050 | BG24: =K13 -> 1350 | BO24: =M13 -> 1500
AN25: 1 | AY25: A | AZ25: B | BA25: C | BC25: X1 | BD25: X2 | BE25: final value | BG25: A | BH25: B | BI25: C | BK25: X1 | BL25: X2 | BM25: final value | BO25: A | BP25: B | BQ25: C | BS25: X1 | BT25: X2 | BU25: final value
C26: SOIL INFILTRATION DATA | P26: SOAKAGE TRIAL PIT DATA | AM26: selected base infiltration: | AN26: =IF($M$27="No",1,IF($M$27>0%,2,"N/A")) -> 2 | AW26: 5 | AX26: =(MAX(L40,Q40,V40)) -> 4.1304276 | AY26: =-(PI()*binf*(W*inf*$C40*60)+PI()*1.25*W*_vol1/100) -> -10.05140104 | AZ26: =-2*PI()*0.5*1.25*(W*inf*$C40*60) -> -0.1565602302 | BA26: =$AX26-W*PI()*(AY$24/2000)^2*1.25+PI()*((AY$24+100)/2000)^2*1.25*W*_vol1/100 -> 4.194118482 | BB26: =IF(AZ26^2-4*AY26*BA26<0,1,0) -> 0 | BC26: =IF(BB26=1,0,(-AZ26+(AZ26^2-4*AY26*BA26)^0.5)/(2*AY26)) -> -0.6537970399 | BD26: =IF(BB26=1,0,(-AZ26-(AZ26^2-4*AY26*BA26)^0.5)/(2*AY26)) -> 0.638221079 | BE26: =2*MAX(BC26:BD35) -> 1.952844043 | BG26: =-(PI()*binf*(W*inf*$C40*60)+PI()*1.25*W*_vol1/100) -> -10.05140104 | BH26: =-2*PI()*0.5*1.25*(W*inf*$C40*60) -> -0.1565602302 | BI26: =$AX26-W*PI()*(BG$24/2000)^2*1.25+PI()*((BG$24+100)/2000)^2*1.25*W*_vol1/100 -> 4.026239625 | BJ26: =IF(BH26^2-4*BG26*BI26<0,1,0) -> 0 | BK26: =IF(BJ26=1,0,(-BH26+(BH26^2-4*BG26*BI26)^0.5)/(2*BG26)) -> -0.6407379543 | BL26: =IF(BJ26=1,0,(-BH26-(BH26^2-4*BG26*BI26)^0.5)/(2*BG26)) -> 0.6251619933 | BM26: =2*MAX(BK26:BL35) -> 1.939414077 | BO26: =-(PI()*binf*(W*inf*$C40*60)+PI()*1.25*W*_vol1/100) -> -10.05140104 | BP26: =-2*PI()*0.5*1.25*(W*inf*$C40*60) -> -0.1565602302 | BQ26: =$AX26-W*PI()*(BO$24/2000)^2*1.25+PI()*((BO$24+100)/2000)^2*1.25*W*_vol1/100 -> 3.91247961 | BR26: =IF(BP26^2-4*BO26*BQ26<0,1,0) -> 0 | BS26: =IF(BR26=1,0,(-BP26+(BP26^2-4*BO26*BQ26)^0.5)/(2*BO26)) -> -0.6317333648 | BT26: =IF(BR26=1,0,(-BP26-(BP26^2-4*BO26*BQ26)^0.5)/(2*BO26)) -> 0.6161574038 | BU26: =2*MAX(BS26:BT35) -> 1.930268435
C27: allowance for infiltration through soakaway base: | M27: 0.3 | P27: soakage trial pit width 'Wt' [m] = | Y27: 1 | AW27: 10 | AX27: =(MAX(L41,Q41,V41)) -> 5.8896396 | AY27: =-(PI()*binf*(W*inf*$C41*60)+PI()*1.25*W*_vol1/100) -> -10.08897549 | AZ27: =-2*PI()*0.5*1.25*(W*inf*$C41*60) -> -0.3131204604 | BA27: =$AX27-W*PI()*(AY$24/2000)^2*1.25+PI()*((AY$24+100)/2000)^2*1.25*W*_vol1/100 -> 5.953330482 | BB27: =IF(AZ27^2-4*AY27*BA27<0,1,0) -> 0 | BC27: =IF(BB27=1,0,(-AZ27+(AZ27^2-4*AY27*BA27)^0.5)/(2*AY27)) -> -0.7838431198 | BD27: =IF(BB27=1,0,(-AZ27-(AZ27^2-4*AY27*BA27)^0.5)/(2*AY27)) -> 0.7528072172 | BE27: =(PI()*(AY24/2000)^2*1.25+(PI()*(BE26/2)^2*1.25-PI()*((AY24+100)/2000)^2*1.25)*_vol1/100)*0.5/((PI()*(BE26/2)^2*binf+0.5*(2*PI()*(BE26/2)*1.25))*(inf*60*60)) -> 2.094125589 | BG27: =-(PI()*binf*(W*inf*$C41*60)+PI()*1.25*W*_vol1/100) -> -10.08897549 | BH27: =-2*PI()*0.5*1.25*(W*inf*$C41*60) -> -0.3131204604 | BI27: =$AX27-W*PI()*(BG$24/2000)^2*1.25+PI()*((BG$24+100)/2000)^2*1.25*W*_vol1/100 -> 5.785451625 | BJ27: =IF(BH27^2-4*BG27*BI27<0,1,0) -> 0 | BK27: =IF(BJ27=1,0,(-BH27+(BH27^2-4*BG27*BI27)^0.5)/(2*BG27)) -> -0.7729370774 | BL27: =IF(BJ27=1,0,(-BH27-(BH27^2-4*BG27*BI27)^0.5)/(2*BG27)) -> 0.7419011748 | BM27: =(PI()*(BG24/2000)^2*1.25+(PI()*(BM26/2)^2*1.25-PI()*((BG24+100)/2000)^2*1.25)*_vol1/100)*0.5/((PI()*(BM26/2)^2*binf+0.5*(2*PI()*(BM26/2)*1.25))*(inf*60*60)) -> 2.119624731 | BO27: =-(PI()*binf*(W*inf*$C41*60)+PI()*1.25*W*_vol1/100) -> -10.08897549 | BP27: =-2*PI()*0.5*1.25*(W*inf*$C41*60) -> -0.3131204604 | BQ27: =$AX27-W*PI()*(BO$24/2000)^2*1.25+PI()*((BO$24+100)/2000)^2*1.25*W*_vol1/100 -> 5.67169161 | BR27: =IF(BP27^2-4*BO27*BQ27<0,1,0) -> 0 | BS27: =IF(BR27=1,0,(-BP27+(BP27^2-4*BO27*BQ27)^0.5)/(2*BO27)) -> -0.7654566534 | BT27: =IF(BR27=1,0,(-BP27-(BP27^2-4*BO27*BQ27)^0.5)/(2*BO27)) -> 0.7344207508 | BU27: =(PI()*(BO24/2000)^2*1.25+(PI()*(BU26/2)^2*1.25-PI()*((BO24+100)/2000)^2*1.25)*_vol1/100)*0.5/((PI()*(BU26/2)^2*binf+0.5*(2*PI()*(BU26/2)*1.25))*(inf*60*60)) -> 2.137198554
C28: available on-site infiltration test results: | P28: soakage trial pit length 'Lt' [m] = | Y28: 2.4 | AJ28: infiltration trial pit: | AL28: 1 | AM28: =IF(infiltr=1,"(?)","") -> (?) | AN28: =IF(infiltr=1,"","(?)") ->  | AW28: 15 | AX28: 7.23996 | AY28: =-(PI()*binf*(W*inf*$C42*60)+PI()*1.25*W*_vol1/100) -> -10.12654995 | AZ28: =-2*PI()*0.5*1.25*(W*inf*$C42*60) -> -0.4696806906 | BA28: =$AX28-W*PI()*(AY$24/2000)^2*1.25+PI()*((AY$24+100)/2000)^2*1.25*W*_vol1/100 -> 7.303650882 | BB28: 0 | BC28: -0.8727643508 | BD28: 0.8263832345 | BE28: =BE27/24 -> 0.08725523289 | BG28: =-(PI()*binf*(W*inf*$C42*60)+PI()*1.25*W*_vol1/100) -> -10.12654995 | BH28: =-2*PI()*0.5*1.25*(W*inf*$C42*60) -> -0.4696806906 | BI28: =$AX28-W*PI()*(BG$24/2000)^2*1.25+PI()*((BG$24+100)/2000)^2*1.25*W*_vol1/100 -> 7.135772025 | BJ28: 0 | BK28: -0.8629509639 | BL28: 0.8165698476 | BM28: =BM27/24 -> 0.08831769714 | BO28: =-(PI()*binf*(W*inf*$C42*60)+PI()*1.25*W*_vol1/100) -> -10.12654995 | BP28: =-2*PI()*0.5*1.25*(W*inf*$C42*60) -> -0.4696806906 | BQ28: =$AX28-W*PI()*(BO$24/2000)^2*1.25+PI()*((BO$24+100)/2000)^2*1.25*W*_vol1/100 -> 7.02201201 | BR28: 0 | BS28: -0.8562353959 | BT28: 0.8098542796 | BU28: =BU27/24 -> 0.08904993975
C29: =IF(AL28=1,"use soakage trial pit table below","soil infiltration rate 'f'") -> use soakage trial pit table below | K29: [m/s] = | M29: =3.5*10^-5 -> 3.5e-05 | P29: total depth from ground level 'Dtb' [m] = | Y29: 2.5 | AW29: 30 | AX29: 9.3387996 | AY29: =-(PI()*binf*(W*inf*$C43*60)+PI()*1.25*W*_vol1/100) -> -10.23927331 | AZ29: =-2*PI()*0.5*1.25*(W*inf*$C43*60) -> -0.9393613812 | BA29: =$AX29-W*PI()*(AY$24/2000)^2*1.25+PI()*((AY$24+100)/2000)^2*1.25*W*_vol1/100 -> 9.402490482 | BB29: 0 | BC29: -1.005235524 | BD29: 0.9134945042 | BG29: =-(PI()*binf*(W*inf*$C43*60)+PI()*1.25*W*_vol1/100) -> -10.23927331 | BH29: =-2*PI()*0.5*1.25*(W*inf*$C43*60) -> -0.9393613812 | BI29: =$AX29-W*PI()*(BG$24/2000)^2*1.25+PI()*((BG$24+100)/2000)^2*1.25*W*_vol1/100 -> 9.234611625 | BJ29: 0 | BK29: -0.9966521084 | BL29: 0.9049110881 | BO29: =-(PI()*binf*(W*inf*$C43*60)+PI()*1.25*W*_vol1/100) -> -10.23927331 | BP29: =-2*PI()*0.5*1.25*(W*inf*$C43*60) -> -0.9393613812 | BQ29: =$AX29-W*PI()*(BO$24/2000)^2*1.25+PI()*((BO$24+100)/2000)^2*1.25*W*_vol1/100 -> 9.12085161 | BR29: 0 | BS29: -0.9907913971 | BT29: 0.8990503768
C30: internal surface area of trial pit 'ap50' [m2] = | M30: =AK56 -> 7.5 | P30: depth to pipe invert level 'Dtp' [m] = | Y30: 1 | AJ30: ring diameters: | AL30: 900 | AM30: show error about taking measurements | AN30: =IF(AND(infiltr=1,ISERROR(M33)),1,0) -> 0 | AW30: 60 | AX30: 11.6415 | AY30: =-(PI()*binf*(W*inf*$C44*60)+PI()*1.25*W*_vol1/100) -> -10.46472005 | AZ30: =-2*PI()*0.5*1.25*(W*inf*$C44*60) -> -1.878722762 | BA30: =$AX30-W*PI()*(AY$24/2000)^2*1.25+PI()*((AY$24+100)/2000)^2*1.25*W*_vol1/100 -> 11.70519088 | BB30: 0 | BC30: -1.151176888 | BD30: 0.9716476934 | BE30: =0.5*PI()*1.25*_vol1/100-24*PI()*binf*inf*60*60 -> -1.938176607 | BF30: A | BG30: =-(PI()*binf*(W*inf*$C44*60)+PI()*1.25*W*_vol1/100) -> -10.46472005 | BH30: =-2*PI()*0.5*1.25*(W*inf*$C44*60) -> -1.878722762 | BI30: =$AX30-W*PI()*(BG$24/2000)^2*1.25+PI()*((BG$24+100)/2000)^2*1.25*W*_vol1/100 -> 11.53731202 | BJ30: 0 | BK30: -1.143592708 | BL30: 0.964063513 | BM30: =0.5*PI()*1.25*_vol1/100-24*PI()*binf*inf*60*60 -> -1.938176607 | BN30: A | BO30: =-(PI()*binf*(W*inf*$C44*60)+PI()*1.25*W*_vol1/100) -> -10.46472005 | BP30: =-2*PI()*0.5*1.25*(W*inf*$C44*60) -> -1.878722762 | BQ30: =$AX30-W*PI()*(BO$24/2000)^2*1.25+PI()*((BO$24+100)/2000)^2*1.25*W*_vol1/100 -> 11.42355201 | BR30: 0 | BS30: -1.13842225 | BT30: 0.9588930556 | BU30: =0.5*PI()*1.25*_vol1/100-24*PI()*binf*inf*60*60 -> -1.938176607 | BV30: A
C31: storage volume between 75-25% 'Vp' [m3] = | M31: =AK59 -> 1.8 | P31: soakage trial pit effective depth 'Dteff' [m] = | Y31: =Y29-Y30 -> 1.5 | AL31: 1050 | AW31: 120 | AX31: 14.0121072 | AY31: =-(PI()*binf*(W*inf*$C45*60)+PI()*1.25*W*_vol1/100) -> -10.91561351 | AZ31: =-2*PI()*0.5*1.25*(W*inf*$C45*60) -> -3.757445525 | BA31: =$AX31-W*PI()*(AY$24/2000)^2*1.25+PI()*((AY$24+100)/2000)^2*1.25*W*_vol1/100 -> 14.07579808 | BB31: 0 | BC31: -1.320648713 | BD31: 0.9764220215 | BE31: =24*0.5*2*PI()*1.25*inf*60*60 -> 15.0297821 | BF31: B | BG31: =-(PI()*binf*(W*inf*$C45*60)+PI()*1.25*W*_vol1/100) -> -10.91561351 | BH31: =-2*PI()*0.5*1.25*(W*inf*$C45*60) -> -3.757445525 | BI31: =$AX31-W*PI()*(BG$24/2000)^2*1.25+PI()*((BG$24+100)/2000)^2*1.25*W*_vol1/100 -> 13.90791922 | BJ31: 0 | BK31: -1.31393373 | BL31: 0.9697070386 | BM31: =24*0.5*2*PI()*1.25*inf*60*60 -> 15.0297821 | BN31: B | BO31: =-(PI()*binf*(W*inf*$C45*60)+PI()*1.25*W*_vol1/100) -> -10.91561351 | BP31: =-2*PI()*0.5*1.25*(W*inf*$C45*60) -> -3.757445525 | BQ31: =$AX31-W*PI()*(BO$24/2000)^2*1.25+PI()*((BO$24+100)/2000)^2*1.25*W*_vol1/100 -> 13.79415921 | BR31: 0 | BS31: -1.309360909 | BT31: 0.9651342174 | BU31: =24*0.5*2*PI()*1.25*inf*60*60 -> 15.0297821 | BV31: B
C32: time for water to fall from 75-25% 'tp' [min] = | M32: =INDEX(AP58:AR58,1,MATCH(AS59,AP59:AR59,0)) -> 90.298583 | P32: free volume in infill aggregate [%] = | Y32: 100 | AL32: 1200 | AW32: 240 | AX32: 16.3655856 | AY32: =-(PI()*binf*(W*inf*$C46*60)+PI()*1.25*W*_vol1/100) -> -11.81740044 | AZ32: =-2*PI()*0.5*1.25*(W*inf*$C46*60) -> -7.51489105 | BA32: =$AX32-W*PI()*(AY$24/2000)^2*1.25+PI()*((AY$24+100)/2000)^2*1.25*W*_vol1/100 -> 16.42927648 | BB32: 0 | BC32: -1.539170912 | BD32: 0.9032534707 | BE32: =0.5*PI()*(AY24/2000)^2*1.25-0.5*PI()*((AY24+100)/2000)^2*1.25*_vol1/100 -> -0.01061514705 | BF32: C | BG32: =-(PI()*binf*(W*inf*$C46*60)+PI()*1.25*W*_vol1/100) -> -11.81740044 | BH32: =-2*PI()*0.5*1.25*(W*inf*$C46*60) -> -7.51489105 | BI32: =$AX32-W*PI()*(BG$24/2000)^2*1.25+PI()*((BG$24+100)/2000)^2*1.25*W*_vol1/100 -> 16.26139762 | BJ32: 0 | BK32: -1.533340613 | BL32: 0.8974231712 | BM32: =0.5*PI()*(BG24/2000)^2*1.25-0.5*PI()*((BG24+100)/2000)^2*1.25*_vol1/100 -> 0.01736466252 | BN32: C | BO32: =-(PI()*binf*(W*inf*$C46*60)+PI()*1.25*W*_vol1/100) -> -11.81740044 | BP32: =-2*PI()*0.5*1.25*(W*inf*$C46*60) -> -7.51489105 | BQ32: =$AX32-W*PI()*(BO$24/2000)^2*1.25+PI()*((BO$24+100)/2000)^2*1.25*W*_vol1/100 -> 16.14763761 | BR32: 0 | BS32: -1.529373868 | BT32: 0.8934564266 | BU32: =0.5*PI()*(BO24/2000)^2*1.25-0.5*PI()*((BO24+100)/2000)^2*1.25*_vol1/100 -> 0.03632466506 | BV32: C
C33: soil infiltration rate 'f' [m/s] = | M33: =AS59 -> 4.429748361e-05 | P33: NOTE: faces of excavation assumed to be vertical | AL33: 1350 | AW33: 360 | AX33: 17.8383699 | AY33: =-(PI()*binf*(W*inf*$C47*60)+PI()*1.25*W*_vol1/100) -> -12.71918736 | AZ33: =-2*PI()*0.5*1.25*(W*inf*$C47*60) -> -11.27233657 | BA33: =$AX33-W*PI()*(AY$24/2000)^2*1.25+PI()*((AY$24+100)/2000)^2*1.25*W*_vol1/100 -> 17.90206078 | BB33: 0 | BC33: -1.709552491 | BD33: 0.8233058898 | BE33: =-2*(-BE31+(BE31^2-4*BE30*BE32)^0.5)/(2*BE30) -> -0.001412677039 | BF33: X1 | BG33: =-(PI()*binf*(W*inf*$C47*60)+PI()*1.25*W*_vol1/100) -> -12.71918736 | BH33: =-2*PI()*0.5*1.25*(W*inf*$C47*60) -> -11.27233657 | BI33: =$AX33-W*PI()*(BG$24/2000)^2*1.25+PI()*((BG$24+100)/2000)^2*1.25*W*_vol1/100 -> 17.73418192 | BJ33: 0 | BK33: -1.70433067 | BL33: 0.8180840684 | BM33: =-2*(-BM31+(BM31^2-4*BM30*BM32)^0.5)/(2*BM30) -> 0.002310356335 | BN33: X1 | BO33: =-(PI()*binf*(W*inf*$C47*60)+PI()*1.25*W*_vol1/100) -> -12.71918736 | BP33: =-2*PI()*0.5*1.25*(W*inf*$C47*60) -> -11.27233657 | BQ33: =$AX33-W*PI()*(BO$24/2000)^2*1.25+PI()*((BO$24+100)/2000)^2*1.25*W*_vol1/100 -> 17.62042191 | BR33: 0 | BS33: -1.700779875 | BT33: 0.8145332737 | BU33: =-2*(-BU31+(BU31^2-4*BU30*BU32)^0.5)/(2*BU30) -> 0.004832185949 | BV33: X1
AL34: 1500 | AW34: 600 | AX34: 19.7385552 | AY34: =-(PI()*binf*(W*inf*$C48*60)+PI()*1.25*W*_vol1/100) -> -14.52276121 | AZ34: =-2*PI()*0.5*1.25*(W*inf*$C48*60) -> -18.78722762 | BA34: =$AX34-W*PI()*(AY$24/2000)^2*1.25+PI()*((AY$24+100)/2000)^2*1.25*W*_vol1/100 -> 19.80224608 | BB34: 0 | BC34: -1.981701362 | BD34: 0.6880611686 | BE34: =-2*(-BE31-(BE31^2-4*BE30*BE32)^0.5)/(2*BE30) -> -15.50778504 | BF34: X2 | BG34: =-(PI()*binf*(W*inf*$C48*60)+PI()*1.25*W*_vol1/100) -> -14.52276121 | BH34: =-2*PI()*0.5*1.25*(W*inf*$C48*60) -> -18.78722762 | BI34: =$AX34-W*PI()*(BG$24/2000)^2*1.25+PI()*((BG$24+100)/2000)^2*1.25*W*_vol1/100 -> 19.63436722 | BJ34: 0 | BK34: -1.977364454 | BL34: 0.6837242603 | BM34: =-2*(-BM31-(BM31^2-4*BM30*BM32)^0.5)/(2*BM30) -> -15.51150807 | BN34: X2 | BO34: =-(PI()*binf*(W*inf*$C48*60)+PI()*1.25*W*_vol1/100) -> -14.52276121 | BP34: =-2*PI()*0.5*1.25*(W*inf*$C48*60) -> -18.78722762 | BQ34: =$AX34-W*PI()*(BO$24/2000)^2*1.25+PI()*((BO$24+100)/2000)^2*1.25*W*_vol1/100 -> 19.52060721 | BR34: 0 | BS34: -1.974417575 | BT34: 0.6807773813 | BU34: =-2*(-BU31-(BU31^2-4*BU30*BU32)^0.5)/(2*BU30) -> -15.5140299 | BV34: X2
AL35: 1800 | AW35: 1440 | AX35: 23.3519832 | AY35: =-(PI()*binf*(W*inf*$C49*60)+PI()*1.25*W*_vol1/100) -> -20.8352697 | AZ35: =-2*PI()*0.5*1.25*(W*inf*$C49*60) -> -45.0893463 | BA35: =$AX35-W*PI()*(AY$24/2000)^2*1.25+PI()*((AY$24+100)/2000)^2*1.25*W*_vol1/100 -> 23.41567408 | BB35: 0 | BC35: -2.596859424 | BD35: 0.4327719434 | BE35: =IF(BE28<=1,BE26,IF(BE26>MAX(BE33,BE34),"N/A",MAX(BE33,BE34))) -> 1.952844043 | BF35: final | BG35: =-(PI()*binf*(W*inf*$C49*60)+PI()*1.25*W*_vol1/100) -> -20.8352697 | BH35: =-2*PI()*0.5*1.25*(W*inf*$C49*60) -> -45.0893463 | BI35: =$AX35-W*PI()*(BG$24/2000)^2*1.25+PI()*((BG$24+100)/2000)^2*1.25*W*_vol1/100 -> 23.24779522 | BJ35: 0 | BK35: -2.594197542 | BL35: 0.4301100611 | BM35: =IF(BM28<=1,BM26,IF(BM26>MAX(BM33,BM34),"N/A",MAX(BM33,BM34))) -> 1.939414077 | BN35: final | BO35: =-(PI()*binf*(W*inf*$C49*60)+PI()*1.25*W*_vol1/100) -> -20.8352697 | BP35: =-2*PI()*0.5*1.25*(W*inf*$C49*60) -> -45.0893463 | BQ35: =$AX35-W*PI()*(BO$24/2000)^2*1.25+PI()*((BO$24+100)/2000)^2*1.25*W*_vol1/100 -> 23.13403521 | BR35: 0 | BS35: -2.5923911 | BT35: 0.4283036191 | BU35: =IF(BU28<=1,BU26,IF(BU26>MAX(BU33,BU34),"N/A",MAX(BU33,BU34))) -> 1.930268435 | BV35: final
C36: REQUIRED STORAGE CAPACITY PER RAINFALL DURATION | AL36: 2100
C37: rainfall duration [min] | E37: rainfall factor Z1 | G37: M5-D rainfalls [mm] | I37: M10-D | N37: M50-D | S37: M100-D | X37: outflow from soakaway [m3] | Z37: required storage [m3] | AL37: 2400 | AP37: 2 | AQ37: 3 | AR37: 4 | AS37: 5 | AT37: 6 | AU37: 7 | AV37: 8 | AW37: 9 | AX37: 10 | AY37: 11
I38: Z2 | J38: rainfalls [mm] | L38: inflow [m3] | N38: Z2 | O38: rainfalls [mm] | Q38: inflow [m3] | S38: Z2 | T38: rainfalls [mm] | V38: inflow [m3] | AL38: 2700 | AM38: find max | AN38: storage reqired | AP38: M1 | AQ38: M2 | AR38: M3 | AS38: M4 | AT38: M5 | AU38: M10 | AV38: M20 | AW38: M30 | AX38: M50 | AY38: M100
AL39: 3000 | AM39: =IF(Z40=MAX($Z$40:$AA$49),1,0) -> 0 | AN39: =Z40 -> 3.966305423 | AO39: 3 | AP39: =IF(location=1,IF($G40<5,tables!D$21,IF($G40>100,tables!D$32,FORECAST($G40,OFFSET(tables!D$21:D$32,MATCH($G40,tables!$C$21:$C$32,1)-1,0,2),OFFSET(tables!$C$21:$C$32,MATCH($G40,tables!$C$21:$C$32,1)-1,0,2)))),IF($G40<5,tables!D$36,IF($G40>100,tables!D$47,FORECAST($G40,OFFSET(tables!D$36:D$47,MATCH($G40,tables!$C$36:$C$47,1)-1,0,2),OFFSET(tables!$C$36:$C$47,MATCH($G40,tables!$C$36:$C$47,1)-1,0,2))))) -> 0.6183 | AQ39: =IF(location=1,IF($G40<5,tables!E$21,IF($G40>100,tables!E$32,FORECAST($G40,OFFSET(tables!E$21:E$32,MATCH($G40,tables!$C$21:$C$32,1)-1,0,2),OFFSET(tables!$C$21:$C$32,MATCH($G40,tables!$C$21:$C$32,1)-1,0,2)))),IF($G40<5,tables!E$36,IF($G40>100,tables!E$47,FORECAST($G40,OFFSET(tables!E$36:E$47,MATCH($G40,tables!$C$36:$C$47,1)-1,0,2),OFFSET(tables!$C$36:$C$47,MATCH($G40,tables!$C$36:$C$47,1)-1,0,2))))) -> 0.79 | AR39: =IF(location=1,IF($G40<5,tables!F$21,IF($G40>100,tables!F$32,FORECAST($G40,OFFSET(tables!F$21:F$32,MATCH($G40,tables!$C$21:$C$32,1)-1,0,2),OFFSET(tables!$C$21:$C$32,MATCH($G40,tables!$C$21:$C$32,1)-1,0,2)))),IF($G40<5,tables!F$36,IF($G40>100,tables!F$47,FORECAST($G40,OFFSET(tables!F$36:F$47,MATCH($G40,tables!$C$36:$C$47,1)-1,0,2),OFFSET(tables!$C$36:$C$47,MATCH($G40,tables!$C$36:$C$47,1)-1,0,2))))) -> 0.8917 | AS39: =IF(location=1,IF($G40<5,tables!G$21,IF($G40>100,tables!G$32,FORECAST($G40,OFFSET(tables!G$21:G$32,MATCH($G40,tables!$C$21:$C$32,1)-1,0,2),OFFSET(tables!$C$21:$C$32,MATCH($G40,tables!$C$21:$C$32,1)-1,0,2)))),IF($G40<5,tables!G$36,IF($G40>100,tables!G$47,FORECAST($G40,OFFSET(tables!G$36:G$47,MATCH($G40,tables!$C$36:$C$47,1)-1,0,2),OFFSET(tables!$C$36:$C$47,MATCH($G40,tables!$C$36:$C$47,1)-1,0,2))))) -> 0.97 | AT39: =IF(location=1,IF($G40<5,tables!H$21,IF($G40>100,tables!H$32,FORECAST($G40,OFFSET(tables!H$21:H$32,MATCH($G40,tables!$C$21:$C$32,1)-1,0,2),OFFSET(tables!$C$21:$C$32,MATCH($G40,tables!$C$21:$C$32,1)-1,0,2)))),IF($G40<5,tables!H$36,IF($G40>100,tables!H$47,FORECAST($G40,OFFSET(tables!H$36:H$47,MATCH($G40,tables!$C$36:$C$47,1)-1,0,2),OFFSET(tables!$C$36:$C$47,MATCH($G40,tables!$C$36:$C$47,1)-1,0,2))))) -> 1.0217 | AU39: =IF(location=1,IF($G40<5,tables!I$21,IF($G40>100,tables!I$32,FORECAST($G40,OFFSET(tables!I$21:I$32,MATCH($G40,tables!$C$21:$C$32,1)-1,0,2),OFFSET(tables!$C$21:$C$32,MATCH($G40,tables!$C$21:$C$32,1)-1,0,2)))),IF($G40<5,tables!I$36,IF($G40>100,tables!I$47,FORECAST($G40,OFFSET(tables!I$36:I$47,MATCH($G40,tables!$C$36:$C$47,1)-1,0,2),OFFSET(tables!$C$36:$C$47,MATCH($G40,tables!$C$36:$C$47,1)-1,0,2))))) -> 1.1951 | AV39: =IF(location=1,IF($G40<5,tables!J$21,IF($G40>100,tables!J$32,FORECAST($G40,OFFSET(tables!J$21:J$32,MATCH($G40,tables!$C$21:$C$32,1)-1,0,2),OFFSET(tables!$C$21:$C$32,MATCH($G40,tables!$C$21:$C$32,1)-1,0,2)))),IF($G40<5,tables!J$36,IF($G40>100,tables!J$47,FORECAST($G40,OFFSET(tables!J$36:J$47,MATCH($G40,tables!$C$36:$C$47,1)-1,0,2),OFFSET(tables!$C$36:$C$47,MATCH($G40,tables!$C$36:$C$47,1)-1,0,2))))) -> 1.3685 | AW39: =IF(location=1,IF($G40<5,tables!K$21,IF($G40>100,tables!K$32,FORECAST($G40,OFFSET(tables!K$21:K$32,MATCH($G40,tables!$C$21:$C$32,1)-1,0,2),OFFSET(tables!$C$21:$C$32,MATCH($G40,tables!$C$21:$C$32,1)-1,0,2)))),IF($G40<5,tables!K$36,IF($G40>100,tables!K$47,FORECAST($G40,OFFSET(tables!K$36:K$47,MATCH($G40,tables!$C$36:$C$47,1)-1,0,2),OFFSET(tables!$C$36:$C$47,MATCH($G40,tables!$C$36:$C$47,1)-1,0,2))))) -> 1.437433333 | AX39: =IF(location=1,IF($G40<5,tables!L$21,IF($G40>100,tables!L$32,FORECAST($G40,OFFSET(tables!L$21:L$32,MATCH($G40,tables!$C$21:$C$32,1)-1,0,2),OFFSET(tables!$C$21:$C$32,MATCH($G40,tables!$C$21:$C$32,1)-1,0,2)))),IF($G40<5,tables!L$36,IF($G40>100,tables!L$47,FORECAST($G40,OFFSET(tables!L$36:L$47,MATCH($G40,tables!$C$36:$C$47,1)-1,0,2),OFFSET(tables!$C$36:$C$47,MATCH($G40,tables!$C$36:$C$47,1)-1,0,2))))) -> 1.5753 | AY39: =IF(location=1,IF($G40<5,tables!M$21,IF($G40>100,tables!M$32,FORECAST($G40,OFFSET(tables!M$21:M$32,MATCH($G40,tables!$C$21:$C$32,1)-1,0,2),OFFSET(tables!$C$21:$C$32,MATCH($G40,tables!$C$21:$C$32,1)-1,0,2)))),IF($G40<5,tables!M$36,IF($G40>100,tables!M$47,FORECAST($G40,OFFSET(tables!M$36:M$47,MATCH($G40,tables!$C$36:$C$47,1)-1,0,2),OFFSET(tables!$C$36:$C$47,MATCH($G40,tables!$C$36:$C$47,1)-1,0,2))))) -> 1.8104
C40: 5 | E40: =IF(rr<0.12,tables!D5,IF(rr>=0.45,tables!D16,FORECAST($M$23,OFFSET(tables!D5:D16,MATCH($M$23,tables!$C$5:$C$16,1)-1,0,2),OFFSET(tables!$C$5:$C$16,MATCH($M$23,tables!$C$5:$C$16,1)-1,0,2)))) -> 0.39 | G40: =E40*15 -> 5.85 | I40: =IF($AL$53=1,0,HLOOKUP($AL$53,$AP$37:$AY$48,$AO39)) -> 1.1951 | J40: =G40*I40*IF($AL$24>1,1+$M$24,1) -> 9.0887355 | L40: =J40/1000*A -> 2.72662065 | N40: =IF($AM$53=1,0,HLOOKUP($AM$53,$AP$37:$AY$48,$AO39)) -> 1.5753 | O40: =G40*N40*IF($AL$24>1,1+$M$24,1) -> 11.9801565 | Q40: =O40/1000*A -> 3.59404695 | S40: =IF($AN$53=1,0,HLOOKUP($AN$53,$AP$37:$AY$48,$AO39)) -> 1.8104 | T40: =G40*S40*IF($AL$24>1,1+$M$24,1) -> 13.768092 | V40: =T40/1000*A -> 4.1304276 | X40: =IF(AND(type=3,subtype=1),W*(PI()*(L/2)^2*binf+2*PI()*(L/2)*0.5*1.25)*(inf*C40*60),IF(AND(type=3,subtype=2),W*(L^2*binf+0.5*L*1.25*4)*(inf*C40*60),(L*W*binf+0.5*1.25*(2*L+2*W))*(inf*C40*60))) -> 0.1641221768 | Z40: =IF(MAX(L40,Q40,V40)-X40<0,0,MAX(L40,Q40,V40)-X40) -> 3.966305423 | AJ40: selected: | AL40: =MATCH(Y20,AL30:AL39) -> 3 | AM40: 0 | AN40: 5.561395246 | AO40: 4 | AP40: =IF(location=1,IF($G41<5,tables!D$21,IF($G41>100,tables!D$32,FORECAST($G41,OFFSET(tables!D$21:D$32,MATCH($G41,tables!$C$21:$C$32,1)-1,0,2),OFFSET(tables!$C$21:$C$32,MATCH($G41,tables!$C$21:$C$32,1)-1,0,2)))),IF($G41<5,tables!D$36,IF($G41>100,tables!D$47,FORECAST($G41,OFFSET(tables!D$36:D$47,MATCH($G41,tables!$C$36:$C$47,1)-1,0,2),OFFSET(tables!$C$36:$C$47,MATCH($G41,tables!$C$36:$C$47,1)-1,0,2))))) -> 0.6138 | AQ40: =IF(location=1,IF($G41<5,tables!E$21,IF($G41>100,tables!E$32,FORECAST($G41,OFFSET(tables!E$21:E$32,MATCH($G41,tables!$C$21:$C$32,1)-1,0,2),OFFSET(tables!$C$21:$C$32,MATCH($G41,tables!$C$21:$C$32,1)-1,0,2)))),IF($G41<5,tables!E$36,IF($G41>100,tables!E$47,FORECAST($G41,OFFSET(tables!E$36:E$47,MATCH($G41,tables!$C$36:$C$47,1)-1,0,2),OFFSET(tables!$C$36:$C$47,MATCH($G41,tables!$C$36:$C$47,1)-1,0,2))))) -> 0.79 | AR40: =IF(location=1,IF($G41<5,tables!F$21,IF($G41>100,tables!F$32,FORECAST($G41,OFFSET(tables!F$21:F$32,MATCH($G41,tables!$C$21:$C$32,1)-1,0,2),OFFSET(tables!$C$21:$C$32,MATCH($G41,tables!$C$21:$C$32,1)-1,0,2)))),IF($G41<5,tables!F$36,IF($G41>100,tables!F$47,FORECAST($G41,OFFSET(tables!F$36:F$47,MATCH($G41,tables!$C$36:$C$47,1)-1,0,2),OFFSET(tables!$C$36:$C$47,MATCH($G41,tables!$C$36:$C$47,1)-1,0,2))))) -> 0.8962 | AS40: =IF(location=1,IF($G41<5,tables!G$21,IF($G41>100,tables!G$32,FORECAST($G41,OFFSET(tables!G$21:G$32,MATCH($G41,tables!$C$21:$C$32,1)-1,0,2),OFFSET(tables!$C$21:$C$32,MATCH($G41,tables!$C$21:$C$32,1)-1,0,2)))),IF($G41<5,tables!G$36,IF($G41>100,tables!G$47,FORECAST($G41,OFFSET(tables!G$36:G$47,MATCH($G41,tables!$C$36:$C$47,1)-1,0,2),OFFSET(tables!$C$36:$C$47,MATCH($G41,tables!$C$36:$C$47,1)-1,0,2))))) -> 0.97 | AT40: =IF(location=1,IF($G41<5,tables!H$21,IF($G41>100,tables!H$32,FORECAST($G41,OFFSET(tables!H$21:H$32,MATCH($G41,tables!$C$21:$C$32,1)-1,0,2),OFFSET(tables!$C$21:$C$32,MATCH($G41,tables!$C$21:$C$32,1)-1,0,2)))),IF($G41<5,tables!H$36,IF($G41>100,tables!H$47,FORECAST($G41,OFFSET(tables!H$36:H$47,MATCH($G41,tables!$C$36:$C$47,1)-1,0,2),OFFSET(tables!$C$36:$C$47,MATCH($G41,tables!$C$36:$C$47,1)-1,0,2))))) -> 1.0262 | AU40: =IF(location=1,IF($G41<5,tables!I$21,IF($G41>100,tables!I$32,FORECAST($G41,OFFSET(tables!I$21:I$32,MATCH($G41,tables!$C$21:$C$32,1)-1,0,2),OFFSET(tables!$C$21:$C$32,MATCH($G41,tables!$C$21:$C$32,1)-1,0,2)))),IF($G41<5,tables!I$36,IF($G41>100,tables!I$47,FORECAST($G41,OFFSET(tables!I$36:I$47,MATCH($G41,tables!$C$36:$C$47,1)-1,0,2),OFFSET(tables!$C$36:$C$47,MATCH($G41,tables!$C$36:$C$47,1)-1,0,2))))) -> 1.2086 | AV40: =IF(location=1,IF($G41<5,tables!J$21,IF($G41>100,tables!J$32,FORECAST($G41,OFFSET(tables!J$21:J$32,MATCH($G41,tables!$C$21:$C$32,1)-1,0,2),OFFSET(tables!$C$21:$C$32,MATCH($G41,tables!$C$21:$C$32,1)-1,0,2)))),IF($G41<5,tables!J$36,IF($G41>100,tables!J$47,FORECAST($G41,OFFSET(tables!J$36:J$47,MATCH($G41,tables!$C$36:$C$47,1)-1,0,2),OFFSET(tables!$C$36:$C$47,MATCH($G41,tables!$C$36:$C$47,1)-1,0,2))))) -> 1.391 | AW40: =IF(location=1,IF($G41<5,tables!K$21,IF($G41>100,tables!K$32,FORECAST($G41,OFFSET(tables!K$21:K$32,MATCH($G41,tables!$C$21:$C$32,1)-1,0,2),OFFSET(tables!$C$21:$C$32,MATCH($G41,tables!$C$21:$C$32,1)-1,0,2)))),IF($G41<5,tables!K$36,IF($G41>100,tables!K$47,FORECAST($G41,OFFSET(tables!K$36:K$47,MATCH($G41,tables!$C$36:$C$47,1)-1,0,2),OFFSET(tables!$C$36:$C$47,MATCH($G41,tables!$C$36:$C$47,1)-1,0,2))))) -> 1.465933333 | AX40: =IF(location=1,IF($G41<5,tables!L$21,IF($G41>100,tables!L$32,FORECAST($G41,OFFSET(tables!L$21:L$32,MATCH($G41,tables!$C$21:$C$32,1)-1,0,2),OFFSET(tables!$C$21:$C$32,MATCH($G41,tables!$C$21:$C$32,1)-1,0,2)))),IF($G41<5,tables!L$36,IF($G41>100,tables!L$47,FORECAST($G41,OFFSET(tables!L$36:L$47,MATCH($G41,tables!$C$36:$C$47,1)-1,0,2),OFFSET(tables!$C$36:$C$47,MATCH($G41,tables!$C$36:$C$47,1)-1,0,2))))) -> 1.6158 | AY40: =IF(location=1,IF($G41<5,tables!M$21,IF($G41>100,tables!M$32,FORECAST($G41,OFFSET(tables!M$21:M$32,MATCH($G41,tables!$C$21:$C$32,1)-1,0,2),OFFSET(tables!$C$21:$C$32,MATCH($G41,tables!$C$21:$C$32,1)-1,0,2)))),IF($G41<5,tables!M$36,IF($G41>100,tables!M$47,FORECAST($G41,OFFSET(tables!M$36:M$47,MATCH($G41,tables!$C$36:$C$47,1)-1,0,2),OFFSET(tables!$C$36:$C$47,MATCH($G41,tables!$C$36:$C$47,1)-1,0,2))))) -> 1.8644
C41: 10 | E41: =IF(rr<0.12,tables!E5,IF(rr>=0.45,tables!E16,FORECAST($M$23,OFFSET(tables!E5:E16,MATCH($M$23,tables!$C$5:$C$16,1)-1,0,2),OFFSET(tables!$C$5:$C$16,MATCH($M$23,tables!$C$5:$C$16,1)-1,0,2)))) -> 0.54 | G41: =E41*15 -> 8.1 | I41: 1.2086 | J41: 12.726558 | L41: 3.8179674 | N41: 1.6158 | O41: 17.014374 | Q41: 5.1043122 | S41: 1.8644 | T41: 19.632132 | V41: 5.8896396 | X41: =IF(AND(type=3,subtype=1),W*(PI()*(L/2)^2*binf+2*PI()*(L/2)*0.5*1.25)*(inf*C41*60),IF(AND(type=3,subtype=2),W*(L^2*binf+0.5*L*1.25*4)*(inf*C41*60),(L*W*binf+0.5*1.25*(2*L+2*W))*(inf*C41*60))) -> 0.3282443535 | Z41: =IF(MAX(L41,Q41,V41)-X41<0,0,MAX(L41,Q41,V41)-X41) -> 5.561395246 | AM41: 0 | AN41: 6.74759347 | AO41: 5 | AP41: =IF(location=1,IF($G42<5,tables!D$21,IF($G42>100,tables!D$32,FORECAST($G42,OFFSET(tables!D$21:D$32,MATCH($G42,tables!$C$21:$C$32,1)-1,0,2),OFFSET(tables!$C$21:$C$32,MATCH($G42,tables!$C$21:$C$32,1)-1,0,2)))),IF($G42<5,tables!D$36,IF($G42>100,tables!D$47,FORECAST($G42,OFFSET(tables!D$36:D$47,MATCH($G42,tables!$C$36:$C$47,1)-1,0,2),OFFSET(tables!$C$36:$C$47,MATCH($G42,tables!$C$36:$C$47,1)-1,0,2))))) -> 0.6105 | AQ41: =IF(location=1,IF($G42<5,tables!E$21,IF($G42>100,tables!E$32,FORECAST($G42,OFFSET(tables!E$21:E$32,MATCH($G42,tables!$C$21:$C$32,1)-1,0,2),OFFSET(tables!$C$21:$C$32,MATCH($G42,tables!$C$21:$C$32,1)-1,0,2)))),IF($G42<5,tables!E$36,IF($G42>100,tables!E$47,FORECAST($G42,OFFSET(tables!E$36:E$47,MATCH($G42,tables!$C$36:$C$47,1)-1,0,2),OFFSET(tables!$C$36:$C$47,MATCH($G42,tables!$C$36:$C$47,1)-1,0,2))))) -> 0.79 | AR41: =IF(location=1,IF($G42<5,tables!F$21,IF($G42>100,tables!F$32,FORECAST($G42,OFFSET(tables!F$21:F$32,MATCH($G42,tables!$C$21:$C$32,1)-1,0,2),OFFSET(tables!$C$21:$C$32,MATCH($G42,tables!$C$21:$C$32,1)-1,0,2)))),IF($G42<5,tables!F$36,IF($G42>100,tables!F$47,FORECAST($G42,OFFSET(tables!F$36:F$47,MATCH($G42,tables!$C$36:$C$47,1)-1,0,2),OFFSET(tables!$C$36:$C$47,MATCH($G42,tables!$C$36:$C$47,1)-1,0,2))))) -> 0.8995 | AS41: =IF(location=1,IF($G42<5,tables!G$21,IF($G42>100,tables!G$32,FORECAST($G42,OFFSET(tables!G$21:G$32,MATCH($G42,tables!$C$21:$C$32,1)-1,0,2),OFFSET(tables!$C$21:$C$32,MATCH($G42,tables!$C$21:$C$32,1)-1,0,2)))),IF($G42<5,tables!G$36,IF($G42>100,tables!G$47,FORECAST($G42,OFFSET(tables!G$36:G$47,MATCH($G42,tables!$C$36:$C$47,1)-1,0,2),OFFSET(tables!$C$36:$C$47,MATCH($G42,tables!$C$36:$C$47,1)-1,0,2))))) -> 0.97 | AT41: =IF(location=1,IF($G42<5,tables!H$21,IF($G42>100,tables!H$32,FORECAST($G42,OFFSET(tables!H$21:H$32,MATCH($G42,tables!$C$21:$C$32,1)-1,0,2),OFFSET(tables!$C$21:$C$32,MATCH($G42,tables!$C$21:$C$32,1)-1,0,2)))),IF($G42<5,tables!H$36,IF($G42>100,tables!H$47,FORECAST($G42,OFFSET(tables!H$36:H$47,MATCH($G42,tables!$C$36:$C$47,1)-1,0,2),OFFSET(tables!$C$36:$C$47,MATCH($G42,tables!$C$36:$C$47,1)-1,0,2))))) -> 1.0295 | AU41: =IF(location=1,IF($G42<5,tables!I$21,IF($G42>100,tables!I$32,FORECAST($G42,OFFSET(tables!I$21:I$32,MATCH($G42,tables!$C$21:$C$32,1)-1,0,2),OFFSET(tables!$C$21:$C$32,MATCH($G42,tables!$C$21:$C$32,1)-1,0,2)))),IF($G42<5,tables!I$36,IF($G42>100,tables!I$47,FORECAST($G42,OFFSET(tables!I$36:I$47,MATCH($G42,tables!$C$36:$C$47,1)-1,0,2),OFFSET(tables!$C$36:$C$47,MATCH($G42,tables!$C$36:$C$47,1)-1,0,2))))) -> 1.2185 | AV41: =IF(location=1,IF($G42<5,tables!J$21,IF($G42>100,tables!J$32,FORECAST($G42,OFFSET(tables!J$21:J$32,MATCH($G42,tables!$C$21:$C$32,1)-1,0,2),OFFSET(tables!$C$21:$C$32,MATCH($G42,tables!$C$21:$C$32,1)-1,0,2)))),IF($G42<5,tables!J$36,IF($G42>100,tables!J$47,FORECAST($G42,OFFSET(tables!J$36:J$47,MATCH($G42,tables!$C$36:$C$47,1)-1,0,2),OFFSET(tables!$C$36:$C$47,MATCH($G42,tables!$C$36:$C$47,1)-1,0,2))))) -> 1.4075 | AW41: =IF(location=1,IF($G42<5,tables!K$21,IF($G42>100,tables!K$32,FORECAST($G42,OFFSET(tables!K$21:K$32,MATCH($G42,tables!$C$21:$C$32,1)-1,0,2),OFFSET(tables!$C$21:$C$32,MATCH($G42,tables!$C$21:$C$32,1)-1,0,2)))),IF($G42<5,tables!K$36,IF($G42>100,tables!K$47,FORECAST($G42,OFFSET(tables!K$36:K$47,MATCH($G42,tables!$C$36:$C$47,1)-1,0,2),OFFSET(tables!$C$36:$C$47,MATCH($G42,tables!$C$36:$C$47,1)-1,0,2))))) -> 1.486833333 | AX41: =IF(location=1,IF($G42<5,tables!L$21,IF($G42>100,tables!L$32,FORECAST($G42,OFFSET(tables!L$21:L$32,MATCH($G42,tables!$C$21:$C$32,1)-1,0,2),OFFSET(tables!$C$21:$C$32,MATCH($G42,tables!$C$21:$C$32,1)-1,0,2)))),IF($G42<5,tables!L$36,IF($G42>100,tables!L$47,FORECAST($G42,OFFSET(tables!L$36:L$47,MATCH($G42,tables!$C$36:$C$47,1)-1,0,2),OFFSET(tables!$C$36:$C$47,MATCH($G42,tables!$C$36:$C$47,1)-1,0,2))))) -> 1.6455 | AY41: =IF(location=1,IF($G42<5,tables!M$21,IF($G42>100,tables!M$32,FORECAST($G42,OFFSET(tables!M$21:M$32,MATCH($G42,tables!$C$21:$C$32,1)-1,0,2),OFFSET(tables!$C$21:$C$32,MATCH($G42,tables!$C$21:$C$32,1)-1,0,2)))),IF($G42<5,tables!M$36,IF($G42>100,tables!M$47,FORECAST($G42,OFFSET(tables!M$36:M$47,MATCH($G42,tables!$C$36:$C$47,1)-1,0,2),OFFSET(tables!$C$36:$C$47,MATCH($G42,tables!$C$36:$C$47,1)-1,0,2))))) -> 1.904
C42: 15 | E42: =IF(rr<0.12,tables!F5,IF(rr>=0.45,tables!F16,FORECAST($M$23,OFFSET(tables!F5:F16,MATCH($M$23,tables!$C$5:$C$16,1)-1,0,2),OFFSET(tables!$C$5:$C$16,MATCH($M$23,tables!$C$5:$C$16,1)-1,0,2)))) -> 0.65 | G42: =E42*15 -> 9.75 | I42: 1.2185 | J42: 15.4444875 | L42: 4.63334625 | N42: 1.6455 | O42: 20.8567125 | Q42: 6.25701375 | S42: 1.904 | T42: 24.1332 | V42: 7.23996 | X42: =IF(AND(type=3,subtype=1),W*(PI()*(L/2)^2*binf+2*PI()*(L/2)*0.5*1.25)*(inf*C42*60),IF(AND(type=3,subtype=2),W*(L^2*binf+0.5*L*1.25*4)*(inf*C42*60),(L*W*binf+0.5*1.25*(2*L+2*W))*(inf*C42*60))) -> 0.4923665303 | Z42: 6.74759347 | AJ42: return period: | AL42: ignore | AM42: 0 | AN42: 8.354066539 | AO42: 6 | AP42: =IF(location=1,IF($G43<5,tables!D$21,IF($G43>100,tables!D$32,FORECAST($G43,OFFSET(tables!D$21:D$32,MATCH($G43,tables!$C$21:$C$32,1)-1,0,2),OFFSET(tables!$C$21:$C$32,MATCH($G43,tables!$C$21:$C$32,1)-1,0,2)))),IF($G43<5,tables!D$36,IF($G43>100,tables!D$47,FORECAST($G43,OFFSET(tables!D$36:D$47,MATCH($G43,tables!$C$36:$C$47,1)-1,0,2),OFFSET(tables!$C$36:$C$47,MATCH($G43,tables!$C$36:$C$47,1)-1,0,2))))) -> 0.6146 | AQ42: =IF(location=1,IF($G43<5,tables!E$21,IF($G43>100,tables!E$32,FORECAST($G43,OFFSET(tables!E$21:E$32,MATCH($G43,tables!$C$21:$C$32,1)-1,0,2),OFFSET(tables!$C$21:$C$32,MATCH($G43,tables!$C$21:$C$32,1)-1,0,2)))),IF($G43<5,tables!E$36,IF($G43>100,tables!E$47,FORECAST($G43,OFFSET(tables!E$36:E$47,MATCH($G43,tables!$C$36:$C$47,1)-1,0,2),OFFSET(tables!$C$36:$C$47,MATCH($G43,tables!$C$36:$C$47,1)-1,0,2))))) -> 0.7946 | AR42: =IF(location=1,IF($G43<5,tables!F$21,IF($G43>100,tables!F$32,FORECAST($G43,OFFSET(tables!F$21:F$32,MATCH($G43,tables!$C$21:$C$32,1)-1,0,2),OFFSET(tables!$C$21:$C$32,MATCH($G43,tables!$C$21:$C$32,1)-1,0,2)))),IF($G43<5,tables!F$36,IF($G43>100,tables!F$47,FORECAST($G43,OFFSET(tables!F$36:F$47,MATCH($G43,tables!$C$36:$C$47,1)-1,0,2),OFFSET(tables!$C$36:$C$47,MATCH($G43,tables!$C$36:$C$47,1)-1,0,2))))) -> 0.9 | AS42: =IF(location=1,IF($G43<5,tables!G$21,IF($G43>100,tables!G$32,FORECAST($G43,OFFSET(tables!G$21:G$32,MATCH($G43,tables!$C$21:$C$32,1)-1,0,2),OFFSET(tables!$C$21:$C$32,MATCH($G43,tables!$C$21:$C$32,1)-1,0,2)))),IF($G43<5,tables!G$36,IF($G43>100,tables!G$47,FORECAST($G43,OFFSET(tables!G$36:G$47,MATCH($G43,tables!$C$36:$C$47,1)-1,0,2),OFFSET(tables!$C$36:$C$47,MATCH($G43,tables!$C$36:$C$47,1)-1,0,2))))) -> 0.97 | AT42: =IF(location=1,IF($G43<5,tables!H$21,IF($G43>100,tables!H$32,FORECAST($G43,OFFSET(tables!H$21:H$32,MATCH($G43,tables!$C$21:$C$32,1)-1,0,2),OFFSET(tables!$C$21:$C$32,MATCH($G43,tables!$C$21:$C$32,1)-1,0,2)))),IF($G43<5,tables!H$36,IF($G43>100,tables!H$47,FORECAST($G43,OFFSET(tables!H$36:H$47,MATCH($G43,tables!$C$36:$C$47,1)-1,0,2),OFFSET(tables!$C$36:$C$47,MATCH($G43,tables!$C$36:$C$47,1)-1,0,2))))) -> 1.03 | AU42: =IF(location=1,IF($G43<5,tables!I$21,IF($G43>100,tables!I$32,FORECAST($G43,OFFSET(tables!I$21:I$32,MATCH($G43,tables!$C$21:$C$32,1)-1,0,2),OFFSET(tables!$C$21:$C$32,MATCH($G43,tables!$C$21:$C$32,1)-1,0,2)))),IF($G43<5,tables!I$36,IF($G43>100,tables!I$47,FORECAST($G43,OFFSET(tables!I$36:I$47,MATCH($G43,tables!$C$36:$C$47,1)-1,0,2),OFFSET(tables!$C$36:$C$47,MATCH($G43,tables!$C$36:$C$47,1)-1,0,2))))) -> 1.2292 | AV42: =IF(location=1,IF($G43<5,tables!J$21,IF($G43>100,tables!J$32,FORECAST($G43,OFFSET(tables!J$21:J$32,MATCH($G43,tables!$C$21:$C$32,1)-1,0,2),OFFSET(tables!$C$21:$C$32,MATCH($G43,tables!$C$21:$C$32,1)-1,0,2)))),IF($G43<5,tables!J$36,IF($G43>100,tables!J$47,FORECAST($G43,OFFSET(tables!J$36:J$47,MATCH($G43,tables!$C$36:$C$47,1)-1,0,2),OFFSET(tables!$C$36:$C$47,MATCH($G43,tables!$C$36:$C$47,1)-1,0,2))))) -> 1.4238 | AW42: =IF(location=1,IF($G43<5,tables!K$21,IF($G43>100,tables!K$32,FORECAST($G43,OFFSET(tables!K$21:K$32,MATCH($G43,tables!$C$21:$C$32,1)-1,0,2),OFFSET(tables!$C$21:$C$32,MATCH($G43,tables!$C$21:$C$32,1)-1,0,2)))),IF($G43<5,tables!K$36,IF($G43>100,tables!K$47,FORECAST($G43,OFFSET(tables!K$36:K$47,MATCH($G43,tables!$C$36:$C$47,1)-1,0,2),OFFSET(tables!$C$36:$C$47,MATCH($G43,tables!$C$36:$C$47,1)-1,0,2))))) -> 1.506866667 | AX42: =IF(location=1,IF($G43<5,tables!L$21,IF($G43>100,tables!L$32,FORECAST($G43,OFFSET(tables!L$21:L$32,MATCH($G43,tables!$C$21:$C$32,1)-1,0,2),OFFSET(tables!$C$21:$C$32,MATCH($G43,tables!$C$21:$C$32,1)-1,0,2)))),IF($G43<5,tables!L$36,IF($G43>100,tables!L$47,FORECAST($G43,OFFSET(tables!L$36:L$47,MATCH($G43,tables!$C$36:$C$47,1)-1,0,2),OFFSET(tables!$C$36:$C$47,MATCH($G43,tables!$C$36:$C$47,1)-1,0,2))))) -> 1.673 | AY42: =IF(location=1,IF($G43<5,tables!M$21,IF($G43>100,tables!M$32,FORECAST($G43,OFFSET(tables!M$21:M$32,MATCH($G43,tables!$C$21:$C$32,1)-1,0,2),OFFSET(tables!$C$21:$C$32,MATCH($G43,tables!$C$21:$C$32,1)-1,0,2)))),IF($G43<5,tables!M$36,IF($G43>100,tables!M$47,FORECAST($G43,OFFSET(tables!M$36:M$47,MATCH($G43,tables!$C$36:$C$47,1)-1,0,2),OFFSET(tables!$C$36:$C$47,MATCH($G43,tables!$C$36:$C$47,1)-1,0,2))))) -> 1.9468
C43: 30 | E43: =IF(rr<0.12,tables!G5,IF(rr>=0.45,tables!G16,FORECAST($M$23,OFFSET(tables!G5:G16,MATCH($M$23,tables!$C$5:$C$16,1)-1,0,2),OFFSET(tables!$C$5:$C$16,MATCH($M$23,tables!$C$5:$C$16,1)-1,0,2)))) -> 0.82 | G43: =E43*15 -> 12.3 | I43: 1.2292 | J43: 19.654908 | L43: 5.8964724 | N43: 1.673 | O43: 26.75127 | Q43: 8.025381 | S43: 1.9468 | T43: 31.129332 | V43: 9.3387996 | X43: =IF(AND(type=3,subtype=1),W*(PI()*(L/2)^2*binf+2*PI()*(L/2)*0.5*1.25)*(inf*C43*60),IF(AND(type=3,subtype=2),W*(L^2*binf+0.5*L*1.25*4)*(inf*C43*60),(L*W*binf+0.5*1.25*(2*L+2*W))*(inf*C43*60))) -> 0.9847330606 | Z43: 8.354066539 | AL43: M1-D | AM43: 0 | AN43: 9.672033879 | AO43: 7 | AP43: =IF(location=1,IF($G44<5,tables!D$21,IF($G44>100,tables!D$32,FORECAST($G44,OFFSET(tables!D$21:D$32,MATCH($G44,tables!$C$21:$C$32,1)-1,0,2),OFFSET(tables!$C$21:$C$32,MATCH($G44,tables!$C$21:$C$32,1)-1,0,2)))),IF($G44<5,tables!D$36,IF($G44>100,tables!D$47,FORECAST($G44,OFFSET(tables!D$36:D$47,MATCH($G44,tables!$C$36:$C$47,1)-1,0,2),OFFSET(tables!$C$36:$C$47,MATCH($G44,tables!$C$36:$C$47,1)-1,0,2))))) -> 0.62 | AQ43: =IF(location=1,IF($G44<5,tables!E$21,IF($G44>100,tables!E$32,FORECAST($G44,OFFSET(tables!E$21:E$32,MATCH($G44,tables!$C$21:$C$32,1)-1,0,2),OFFSET(tables!$C$21:$C$32,MATCH($G44,tables!$C$21:$C$32,1)-1,0,2)))),IF($G44<5,tables!E$36,IF($G44>100,tables!E$47,FORECAST($G44,OFFSET(tables!E$36:E$47,MATCH($G44,tables!$C$36:$C$47,1)-1,0,2),OFFSET(tables!$C$36:$C$47,MATCH($G44,tables!$C$36:$C$47,1)-1,0,2))))) -> 0.8 | AR43: =IF(location=1,IF($G44<5,tables!F$21,IF($G44>100,tables!F$32,FORECAST($G44,OFFSET(tables!F$21:F$32,MATCH($G44,tables!$C$21:$C$32,1)-1,0,2),OFFSET(tables!$C$21:$C$32,MATCH($G44,tables!$C$21:$C$32,1)-1,0,2)))),IF($G44<5,tables!F$36,IF($G44>100,tables!F$47,FORECAST($G44,OFFSET(tables!F$36:F$47,MATCH($G44,tables!$C$36:$C$47,1)-1,0,2),OFFSET(tables!$C$36:$C$47,MATCH($G44,tables!$C$36:$C$47,1)-1,0,2))))) -> 0.9 | AS43: =IF(location=1,IF($G44<5,tables!G$21,IF($G44>100,tables!G$32,FORECAST($G44,OFFSET(tables!G$21:G$32,MATCH($G44,tables!$C$21:$C$32,1)-1,0,2),OFFSET(tables!$C$21:$C$32,MATCH($G44,tables!$C$21:$C$32,1)-1,0,2)))),IF($G44<5,tables!G$36,IF($G44>100,tables!G$47,FORECAST($G44,OFFSET(tables!G$36:G$47,MATCH($G44,tables!$C$36:$C$47,1)-1,0,2),OFFSET(tables!$C$36:$C$47,MATCH($G44,tables!$C$36:$C$47,1)-1,0,2))))) -> 0.97 | AT43: =IF(location=1,IF($G44<5,tables!H$21,IF($G44>100,tables!H$32,FORECAST($G44,OFFSET(tables!H$21:H$32,MATCH($G44,tables!$C$21:$C$32,1)-1,0,2),OFFSET(tables!$C$21:$C$32,MATCH($G44,tables!$C$21:$C$32,1)-1,0,2)))),IF($G44<5,tables!H$36,IF($G44>100,tables!H$47,FORECAST($G44,OFFSET(tables!H$36:H$47,MATCH($G44,tables!$C$36:$C$47,1)-1,0,2),OFFSET(tables!$C$36:$C$47,MATCH($G44,tables!$C$36:$C$47,1)-1,0,2))))) -> 1.03 | AU43: =IF(location=1,IF($G44<5,tables!I$21,IF($G44>100,tables!I$32,FORECAST($G44,OFFSET(tables!I$21:I$32,MATCH($G44,tables!$C$21:$C$32,1)-1,0,2),OFFSET(tables!$C$21:$C$32,MATCH($G44,tables!$C$21:$C$32,1)-1,0,2)))),IF($G44<5,tables!I$36,IF($G44>100,tables!I$47,FORECAST($G44,OFFSET(tables!I$36:I$47,MATCH($G44,tables!$C$36:$C$47,1)-1,0,2),OFFSET(tables!$C$36:$C$47,MATCH($G44,tables!$C$36:$C$47,1)-1,0,2))))) -> 1.24 | AV43: =IF(location=1,IF($G44<5,tables!J$21,IF($G44>100,tables!J$32,FORECAST($G44,OFFSET(tables!J$21:J$32,MATCH($G44,tables!$C$21:$C$32,1)-1,0,2),OFFSET(tables!$C$21:$C$32,MATCH($G44,tables!$C$21:$C$32,1)-1,0,2)))),IF($G44<5,tables!J$36,IF($G44>100,tables!J$47,FORECAST($G44,OFFSET(tables!J$36:J$47,MATCH($G44,tables!$C$36:$C$47,1)-1,0,2),OFFSET(tables!$C$36:$C$47,MATCH($G44,tables!$C$36:$C$47,1)-1,0,2))))) -> 1.44 | AW43: =IF(location=1,IF($G44<5,tables!K$21,IF($G44>100,tables!K$32,FORECAST($G44,OFFSET(tables!K$21:K$32,MATCH($G44,tables!$C$21:$C$32,1)-1,0,2),OFFSET(tables!$C$21:$C$32,MATCH($G44,tables!$C$21:$C$32,1)-1,0,2)))),IF($G44<5,tables!K$36,IF($G44>100,tables!K$47,FORECAST($G44,OFFSET(tables!K$36:K$47,MATCH($G44,tables!$C$36:$C$47,1)-1,0,2),OFFSET(tables!$C$36:$C$47,MATCH($G44,tables!$C$36:$C$47,1)-1,0,2))))) -> 1.526666667 | AX43: =IF(location=1,IF($G44<5,tables!L$21,IF($G44>100,tables!L$32,FORECAST($G44,OFFSET(tables!L$21:L$32,MATCH($G44,tables!$C$21:$C$32,1)-1,0,2),OFFSET(tables!$C$21:$C$32,MATCH($G44,tables!$C$21:$C$32,1)-1,0,2)))),IF($G44<5,tables!L$36,IF($G44>100,tables!L$47,FORECAST($G44,OFFSET(tables!L$36:L$47,MATCH($G44,tables!$C$36:$C$47,1)-1,0,2),OFFSET(tables!$C$36:$C$47,MATCH($G44,tables!$C$36:$C$47,1)-1,0,2))))) -> 1.7 | AY43: =IF(location=1,IF($G44<5,tables!M$21,IF($G44>100,tables!M$32,FORECAST($G44,OFFSET(tables!M$21:M$32,MATCH($G44,tables!$C$21:$C$32,1)-1,0,2),OFFSET(tables!$C$21:$C$32,MATCH($G44,tables!$C$21:$C$32,1)-1,0,2)))),IF($G44<5,tables!M$36,IF($G44>100,tables!M$47,FORECAST($G44,OFFSET(tables!M$36:M$47,MATCH($G44,tables!$C$36:$C$47,1)-1,0,2),OFFSET(tables!$C$36:$C$47,MATCH($G44,tables!$C$36:$C$47,1)-1,0,2))))) -> 1.99
C44: 60 | E44: =IF(rr<0.12,tables!H5,IF(rr>=0.45,tables!H16,FORECAST($M$23,OFFSET(tables!H5:H16,MATCH($M$23,tables!$C$5:$C$16,1)-1,0,2),OFFSET(tables!$C$5:$C$16,MATCH($M$23,tables!$C$5:$C$16,1)-1,0,2)))) -> 1 | G44: =E44*15 -> 15 | I44: 1.24 | J44: 24.18 | L44: 7.254 | N44: 1.7 | O44: 33.15 | Q44: 9.945 | S44: 1.99 | T44: 38.805 | V44: 11.6415 | X44: =IF(AND(type=3,subtype=1),W*(PI()*(L/2)^2*binf+2*PI()*(L/2)*0.5*1.25)*(inf*C44*60),IF(AND(type=3,subtype=2),W*(L^2*binf+0.5*L*1.25*4)*(inf*C44*60),(L*W*binf+0.5*1.25*(2*L+2*W))*(inf*C44*60))) -> 1.969466121 | Z44: 9.672033879 | AL44: M2-D | AM44: 1 | AN44: 10.07317496 | AO44: 8 | AP44: =IF(location=1,IF($G45<5,tables!D$21,IF($G45>100,tables!D$32,FORECAST($G45,OFFSET(tables!D$21:D$32,MATCH($G45,tables!$C$21:$C$32,1)-1,0,2),OFFSET(tables!$C$21:$C$32,MATCH($G45,tables!$C$21:$C$32,1)-1,0,2)))),IF($G45<5,tables!D$36,IF($G45>100,tables!D$47,FORECAST($G45,OFFSET(tables!D$36:D$47,MATCH($G45,tables!$C$36:$C$47,1)-1,0,2),OFFSET(tables!$C$36:$C$47,MATCH($G45,tables!$C$36:$C$47,1)-1,0,2))))) -> 0.6314 | AQ44: =IF(location=1,IF($G45<5,tables!E$21,IF($G45>100,tables!E$32,FORECAST($G45,OFFSET(tables!E$21:E$32,MATCH($G45,tables!$C$21:$C$32,1)-1,0,2),OFFSET(tables!$C$21:$C$32,MATCH($G45,tables!$C$21:$C$32,1)-1,0,2)))),IF($G45<5,tables!E$36,IF($G45>100,tables!E$47,FORECAST($G45,OFFSET(tables!E$36:E$47,MATCH($G45,tables!$C$36:$C$47,1)-1,0,2),OFFSET(tables!$C$36:$C$47,MATCH($G45,tables!$C$36:$C$47,1)-1,0,2))))) -> 0.8057 | AR44: =IF(location=1,IF($G45<5,tables!F$21,IF($G45>100,tables!F$32,FORECAST($G45,OFFSET(tables!F$21:F$32,MATCH($G45,tables!$C$21:$C$32,1)-1,0,2),OFFSET(tables!$C$21:$C$32,MATCH($G45,tables!$C$21:$C$32,1)-1,0,2)))),IF($G45<5,tables!F$36,IF($G45>100,tables!F$47,FORECAST($G45,OFFSET(tables!F$36:F$47,MATCH($G45,tables!$C$36:$C$47,1)-1,0,2),OFFSET(tables!$C$36:$C$47,MATCH($G45,tables!$C$36:$C$47,1)-1,0,2))))) -> 0.9 | AS44: =IF(location=1,IF($G45<5,tables!G$21,IF($G45>100,tables!G$32,FORECAST($G45,OFFSET(tables!G$21:G$32,MATCH($G45,tables!$C$21:$C$32,1)-1,0,2),OFFSET(tables!$C$21:$C$32,MATCH($G45,tables!$C$21:$C$32,1)-1,0,2)))),IF($G45<5,tables!G$36,IF($G45>100,tables!G$47,FORECAST($G45,OFFSET(tables!G$36:G$47,MATCH($G45,tables!$C$36:$C$47,1)-1,0,2),OFFSET(tables!$C$36:$C$47,MATCH($G45,tables!$C$36:$C$47,1)-1,0,2))))) -> 0.97 | AT44: =IF(location=1,IF($G45<5,tables!H$21,IF($G45>100,tables!H$32,FORECAST($G45,OFFSET(tables!H$21:H$32,MATCH($G45,tables!$C$21:$C$32,1)-1,0,2),OFFSET(tables!$C$21:$C$32,MATCH($G45,tables!$C$21:$C$32,1)-1,0,2)))),IF($G45<5,tables!H$36,IF($G45>100,tables!H$47,FORECAST($G45,OFFSET(tables!H$36:H$47,MATCH($G45,tables!$C$36:$C$47,1)-1,0,2),OFFSET(tables!$C$36:$C$47,MATCH($G45,tables!$C$36:$C$47,1)-1,0,2))))) -> 1.03 | AU44: =IF(location=1,IF($G45<5,tables!I$21,IF($G45>100,tables!I$32,FORECAST($G45,OFFSET(tables!I$21:I$32,MATCH($G45,tables!$C$21:$C$32,1)-1,0,2),OFFSET(tables!$C$21:$C$32,MATCH($G45,tables!$C$21:$C$32,1)-1,0,2)))),IF($G45<5,tables!I$36,IF($G45>100,tables!I$47,FORECAST($G45,OFFSET(tables!I$36:I$47,MATCH($G45,tables!$C$36:$C$47,1)-1,0,2),OFFSET(tables!$C$36:$C$47,MATCH($G45,tables!$C$36:$C$47,1)-1,0,2))))) -> 1.24 | AV44: =IF(location=1,IF($G45<5,tables!J$21,IF($G45>100,tables!J$32,FORECAST($G45,OFFSET(tables!J$21:J$32,MATCH($G45,tables!$C$21:$C$32,1)-1,0,2),OFFSET(tables!$C$21:$C$32,MATCH($G45,tables!$C$21:$C$32,1)-1,0,2)))),IF($G45<5,tables!J$36,IF($G45>100,tables!J$47,FORECAST($G45,OFFSET(tables!J$36:J$47,MATCH($G45,tables!$C$36:$C$47,1)-1,0,2),OFFSET(tables!$C$36:$C$47,MATCH($G45,tables!$C$36:$C$47,1)-1,0,2))))) -> 1.4457 | AW44: =IF(location=1,IF($G45<5,tables!K$21,IF($G45>100,tables!K$32,FORECAST($G45,OFFSET(tables!K$21:K$32,MATCH($G45,tables!$C$21:$C$32,1)-1,0,2),OFFSET(tables!$C$21:$C$32,MATCH($G45,tables!$C$21:$C$32,1)-1,0,2)))),IF($G45<5,tables!K$36,IF($G45>100,tables!K$47,FORECAST($G45,OFFSET(tables!K$36:K$47,MATCH($G45,tables!$C$36:$C$47,1)-1,0,2),OFFSET(tables!$C$36:$C$47,MATCH($G45,tables!$C$36:$C$47,1)-1,0,2))))) -> 1.536166667 | AX44: =IF(location=1,IF($G45<5,tables!L$21,IF($G45>100,tables!L$32,FORECAST($G45,OFFSET(tables!L$21:L$32,MATCH($G45,tables!$C$21:$C$32,1)-1,0,2),OFFSET(tables!$C$21:$C$32,MATCH($G45,tables!$C$21:$C$32,1)-1,0,2)))),IF($G45<5,tables!L$36,IF($G45>100,tables!L$47,FORECAST($G45,OFFSET(tables!L$36:L$47,MATCH($G45,tables!$C$36:$C$47,1)-1,0,2),OFFSET(tables!$C$36:$C$47,MATCH($G45,tables!$C$36:$C$47,1)-1,0,2))))) -> 1.7171 | AY44: =IF(location=1,IF($G45<5,tables!M$21,IF($G45>100,tables!M$32,FORECAST($G45,OFFSET(tables!M$21:M$32,MATCH($G45,tables!$C$21:$C$32,1)-1,0,2),OFFSET(tables!$C$21:$C$32,MATCH($G45,tables!$C$21:$C$32,1)-1,0,2)))),IF($G45<5,tables!M$36,IF($G45>100,tables!M$47,FORECAST($G45,OFFSET(tables!M$36:M$47,MATCH($G45,tables!$C$36:$C$47,1)-1,0,2),OFFSET(tables!$C$36:$C$47,MATCH($G45,tables!$C$36:$C$47,1)-1,0,2))))) -> 2.0128
C45: 120 | E45: =IF(rr<0.12,tables!I5,IF(rr>=0.45,tables!I16,FORECAST($M$23,OFFSET(tables!I5:I16,MATCH($M$23,tables!$C$5:$C$16,1)-1,0,2),OFFSET(tables!$C$5:$C$16,MATCH($M$23,tables!$C$5:$C$16,1)-1,0,2)))) -> 1.19 | G45: =E45*15 -> 17.85 | I45: 1.24 | J45: 28.7742 | L45: 8.63226 | N45: 1.7171 | O45: 39.8453055 | Q45: 11.95359165 | S45: 2.0128 | T45: 46.707024 | V45: 14.0121072 | X45: =IF(AND(type=3,subtype=1),W*(PI()*(L/2)^2*binf+2*PI()*(L/2)*0.5*1.25)*(inf*C45*60),IF(AND(type=3,subtype=2),W*(L^2*binf+0.5*L*1.25*4)*(inf*C45*60),(L*W*binf+0.5*1.25*(2*L+2*W))*(inf*C45*60))) -> 3.938932242 | Z45: 10.07317496 | AL45: M3-D | AM45: 0 | AN45: 8.487721115 | AO45: 9 | AP45: =IF(location=1,IF($G46<5,tables!D$21,IF($G46>100,tables!D$32,FORECAST($G46,OFFSET(tables!D$21:D$32,MATCH($G46,tables!$C$21:$C$32,1)-1,0,2),OFFSET(tables!$C$21:$C$32,MATCH($G46,tables!$C$21:$C$32,1)-1,0,2)))),IF($G46<5,tables!D$36,IF($G46>100,tables!D$47,FORECAST($G46,OFFSET(tables!D$36:D$47,MATCH($G46,tables!$C$36:$C$47,1)-1,0,2),OFFSET(tables!$C$36:$C$47,MATCH($G46,tables!$C$36:$C$47,1)-1,0,2))))) -> 0.6428 | AQ45: =IF(location=1,IF($G46<5,tables!E$21,IF($G46>100,tables!E$32,FORECAST($G46,OFFSET(tables!E$21:E$32,MATCH($G46,tables!$C$21:$C$32,1)-1,0,2),OFFSET(tables!$C$21:$C$32,MATCH($G46,tables!$C$21:$C$32,1)-1,0,2)))),IF($G46<5,tables!E$36,IF($G46>100,tables!E$47,FORECAST($G46,OFFSET(tables!E$36:E$47,MATCH($G46,tables!$C$36:$C$47,1)-1,0,2),OFFSET(tables!$C$36:$C$47,MATCH($G46,tables!$C$36:$C$47,1)-1,0,2))))) -> 0.8114 | AR45: =IF(location=1,IF($G46<5,tables!F$21,IF($G46>100,tables!F$32,FORECAST($G46,OFFSET(tables!F$21:F$32,MATCH($G46,tables!$C$21:$C$32,1)-1,0,2),OFFSET(tables!$C$21:$C$32,MATCH($G46,tables!$C$21:$C$32,1)-1,0,2)))),IF($G46<5,tables!F$36,IF($G46>100,tables!F$47,FORECAST($G46,OFFSET(tables!F$36:F$47,MATCH($G46,tables!$C$36:$C$47,1)-1,0,2),OFFSET(tables!$C$36:$C$47,MATCH($G46,tables!$C$36:$C$47,1)-1,0,2))))) -> 0.9014 | AS45: =IF(location=1,IF($G46<5,tables!G$21,IF($G46>100,tables!G$32,FORECAST($G46,OFFSET(tables!G$21:G$32,MATCH($G46,tables!$C$21:$C$32,1)-1,0,2),OFFSET(tables!$C$21:$C$32,MATCH($G46,tables!$C$21:$C$32,1)-1,0,2)))),IF($G46<5,tables!G$36,IF($G46>100,tables!G$47,FORECAST($G46,OFFSET(tables!G$36:G$47,MATCH($G46,tables!$C$36:$C$47,1)-1,0,2),OFFSET(tables!$C$36:$C$47,MATCH($G46,tables!$C$36:$C$47,1)-1,0,2))))) -> 0.97 | AT45: =IF(location=1,IF($G46<5,tables!H$21,IF($G46>100,tables!H$32,FORECAST($G46,OFFSET(tables!H$21:H$32,MATCH($G46,tables!$C$21:$C$32,1)-1,0,2),OFFSET(tables!$C$21:$C$32,MATCH($G46,tables!$C$21:$C$32,1)-1,0,2)))),IF($G46<5,tables!H$36,IF($G46>100,tables!H$47,FORECAST($G46,OFFSET(tables!H$36:H$47,MATCH($G46,tables!$C$36:$C$47,1)-1,0,2),OFFSET(tables!$C$36:$C$47,MATCH($G46,tables!$C$36:$C$47,1)-1,0,2))))) -> 1.03 | AU45: =IF(location=1,IF($G46<5,tables!I$21,IF($G46>100,tables!I$32,FORECAST($G46,OFFSET(tables!I$21:I$32,MATCH($G46,tables!$C$21:$C$32,1)-1,0,2),OFFSET(tables!$C$21:$C$32,MATCH($G46,tables!$C$21:$C$32,1)-1,0,2)))),IF($G46<5,tables!I$36,IF($G46>100,tables!I$47,FORECAST($G46,OFFSET(tables!I$36:I$47,MATCH($G46,tables!$C$36:$C$47,1)-1,0,2),OFFSET(tables!$C$36:$C$47,MATCH($G46,tables!$C$36:$C$47,1)-1,0,2))))) -> 1.24 | AV45: =IF(location=1,IF($G46<5,tables!J$21,IF($G46>100,tables!J$32,FORECAST($G46,OFFSET(tables!J$21:J$32,MATCH($G46,tables!$C$21:$C$32,1)-1,0,2),OFFSET(tables!$C$21:$C$32,MATCH($G46,tables!$C$21:$C$32,1)-1,0,2)))),IF($G46<5,tables!J$36,IF($G46>100,tables!J$47,FORECAST($G46,OFFSET(tables!J$36:J$47,MATCH($G46,tables!$C$36:$C$47,1)-1,0,2),OFFSET(tables!$C$36:$C$47,MATCH($G46,tables!$C$36:$C$47,1)-1,0,2))))) -> 1.4486 | AW45: =IF(location=1,IF($G46<5,tables!K$21,IF($G46>100,tables!K$32,FORECAST($G46,OFFSET(tables!K$21:K$32,MATCH($G46,tables!$C$21:$C$32,1)-1,0,2),OFFSET(tables!$C$21:$C$32,MATCH($G46,tables!$C$21:$C$32,1)-1,0,2)))),IF($G46<5,tables!K$36,IF($G46>100,tables!K$47,FORECAST($G46,OFFSET(tables!K$36:K$47,MATCH($G46,tables!$C$36:$C$47,1)-1,0,2),OFFSET(tables!$C$36:$C$47,MATCH($G46,tables!$C$36:$C$47,1)-1,0,2))))) -> 1.541933333 | AX45: =IF(location=1,IF($G46<5,tables!L$21,IF($G46>100,tables!L$32,FORECAST($G46,OFFSET(tables!L$21:L$32,MATCH($G46,tables!$C$21:$C$32,1)-1,0,2),OFFSET(tables!$C$21:$C$32,MATCH($G46,tables!$C$21:$C$32,1)-1,0,2)))),IF($G46<5,tables!L$36,IF($G46>100,tables!L$47,FORECAST($G46,OFFSET(tables!L$36:L$47,MATCH($G46,tables!$C$36:$C$47,1)-1,0,2),OFFSET(tables!$C$36:$C$47,MATCH($G46,tables!$C$36:$C$47,1)-1,0,2))))) -> 1.7286 | AY45: =IF(location=1,IF($G46<5,tables!M$21,IF($G46>100,tables!M$32,FORECAST($G46,OFFSET(tables!M$21:M$32,MATCH($G46,tables!$C$21:$C$32,1)-1,0,2),OFFSET(tables!$C$21:$C$32,MATCH($G46,tables!$C$21:$C$32,1)-1,0,2)))),IF($G46<5,tables!M$36,IF($G46>100,tables!M$47,FORECAST($G46,OFFSET(tables!M$36:M$47,MATCH($G46,tables!$C$36:$C$47,1)-1,0,2),OFFSET(tables!$C$36:$C$47,MATCH($G46,tables!$C$36:$C$47,1)-1,0,2))))) -> 2.0272
C46: 240 | E46: =IF(rr<0.12,tables!J5,IF(rr>=0.45,tables!J16,FORECAST($M$23,OFFSET(tables!J5:J16,MATCH($M$23,tables!$C$5:$C$16,1)-1,0,2),OFFSET(tables!$C$5:$C$16,MATCH($M$23,tables!$C$5:$C$16,1)-1,0,2)))) -> 1.38 | G46: =E46*15 -> 20.7 | I46: 1.24 | J46: 33.3684 | L46: 10.01052 | N46: 1.7286 | O46: 46.516626 | Q46: 13.9549878 | S46: 2.0272 | T46: 54.551952 | V46: 16.3655856 | X46: =IF(AND(type=3,subtype=1),W*(PI()*(L/2)^2*binf+2*PI()*(L/2)*0.5*1.25)*(inf*C46*60),IF(AND(type=3,subtype=2),W*(L^2*binf+0.5*L*1.25*4)*(inf*C46*60),(L*W*binf+0.5*1.25*(2*L+2*W))*(inf*C46*60))) -> 7.877864485 | Z46: 8.487721115 | AL46: M4-D | AM46: 0 | AN46: 6.021573173 | AO46: 10 | AP46: =IF(location=1,IF($G47<5,tables!D$21,IF($G47>100,tables!D$32,FORECAST($G47,OFFSET(tables!D$21:D$32,MATCH($G47,tables!$C$21:$C$32,1)-1,0,2),OFFSET(tables!$C$21:$C$32,MATCH($G47,tables!$C$21:$C$32,1)-1,0,2)))),IF($G47<5,tables!D$36,IF($G47>100,tables!D$47,FORECAST($G47,OFFSET(tables!D$36:D$47,MATCH($G47,tables!$C$36:$C$47,1)-1,0,2),OFFSET(tables!$C$36:$C$47,MATCH($G47,tables!$C$36:$C$47,1)-1,0,2))))) -> 0.6506 | AQ46: =IF(location=1,IF($G47<5,tables!E$21,IF($G47>100,tables!E$32,FORECAST($G47,OFFSET(tables!E$21:E$32,MATCH($G47,tables!$C$21:$C$32,1)-1,0,2),OFFSET(tables!$C$21:$C$32,MATCH($G47,tables!$C$21:$C$32,1)-1,0,2)))),IF($G47<5,tables!E$36,IF($G47>100,tables!E$47,FORECAST($G47,OFFSET(tables!E$36:E$47,MATCH($G47,tables!$C$36:$C$47,1)-1,0,2),OFFSET(tables!$C$36:$C$47,MATCH($G47,tables!$C$36:$C$47,1)-1,0,2))))) -> 0.8153 | AR46: =IF(location=1,IF($G47<5,tables!F$21,IF($G47>100,tables!F$32,FORECAST($G47,OFFSET(tables!F$21:F$32,MATCH($G47,tables!$C$21:$C$32,1)-1,0,2),OFFSET(tables!$C$21:$C$32,MATCH($G47,tables!$C$21:$C$32,1)-1,0,2)))),IF($G47<5,tables!F$36,IF($G47>100,tables!F$47,FORECAST($G47,OFFSET(tables!F$36:F$47,MATCH($G47,tables!$C$36:$C$47,1)-1,0,2),OFFSET(tables!$C$36:$C$47,MATCH($G47,tables!$C$36:$C$47,1)-1,0,2))))) -> 0.9053 | AS46: =IF(location=1,IF($G47<5,tables!G$21,IF($G47>100,tables!G$32,FORECAST($G47,OFFSET(tables!G$21:G$32,MATCH($G47,tables!$C$21:$C$32,1)-1,0,2),OFFSET(tables!$C$21:$C$32,MATCH($G47,tables!$C$21:$C$32,1)-1,0,2)))),IF($G47<5,tables!G$36,IF($G47>100,tables!G$47,FORECAST($G47,OFFSET(tables!G$36:G$47,MATCH($G47,tables!$C$36:$C$47,1)-1,0,2),OFFSET(tables!$C$36:$C$47,MATCH($G47,tables!$C$36:$C$47,1)-1,0,2))))) -> 0.97 | AT46: =IF(location=1,IF($G47<5,tables!H$21,IF($G47>100,tables!H$32,FORECAST($G47,OFFSET(tables!H$21:H$32,MATCH($G47,tables!$C$21:$C$32,1)-1,0,2),OFFSET(tables!$C$21:$C$32,MATCH($G47,tables!$C$21:$C$32,1)-1,0,2)))),IF($G47<5,tables!H$36,IF($G47>100,tables!H$47,FORECAST($G47,OFFSET(tables!H$36:H$47,MATCH($G47,tables!$C$36:$C$47,1)-1,0,2),OFFSET(tables!$C$36:$C$47,MATCH($G47,tables!$C$36:$C$47,1)-1,0,2))))) -> 1.03 | AU46: =IF(location=1,IF($G47<5,tables!I$21,IF($G47>100,tables!I$32,FORECAST($G47,OFFSET(tables!I$21:I$32,MATCH($G47,tables!$C$21:$C$32,1)-1,0,2),OFFSET(tables!$C$21:$C$32,MATCH($G47,tables!$C$21:$C$32,1)-1,0,2)))),IF($G47<5,tables!I$36,IF($G47>100,tables!I$47,FORECAST($G47,OFFSET(tables!I$36:I$47,MATCH($G47,tables!$C$36:$C$47,1)-1,0,2),OFFSET(tables!$C$36:$C$47,MATCH($G47,tables!$C$36:$C$47,1)-1,0,2))))) -> 1.24 | AV46: =IF(location=1,IF($G47<5,tables!J$21,IF($G47>100,tables!J$32,FORECAST($G47,OFFSET(tables!J$21:J$32,MATCH($G47,tables!$C$21:$C$32,1)-1,0,2),OFFSET(tables!$C$21:$C$32,MATCH($G47,tables!$C$21:$C$32,1)-1,0,2)))),IF($G47<5,tables!J$36,IF($G47>100,tables!J$47,FORECAST($G47,OFFSET(tables!J$36:J$47,MATCH($G47,tables!$C$36:$C$47,1)-1,0,2),OFFSET(tables!$C$36:$C$47,MATCH($G47,tables!$C$36:$C$47,1)-1,0,2))))) -> 1.4447 | AW46: =IF(location=1,IF($G47<5,tables!K$21,IF($G47>100,tables!K$32,FORECAST($G47,OFFSET(tables!K$21:K$32,MATCH($G47,tables!$C$21:$C$32,1)-1,0,2),OFFSET(tables!$C$21:$C$32,MATCH($G47,tables!$C$21:$C$32,1)-1,0,2)))),IF($G47<5,tables!K$36,IF($G47>100,tables!K$47,FORECAST($G47,OFFSET(tables!K$36:K$47,MATCH($G47,tables!$C$36:$C$47,1)-1,0,2),OFFSET(tables!$C$36:$C$47,MATCH($G47,tables!$C$36:$C$47,1)-1,0,2))))) -> 1.538033333 | AX46: =IF(location=1,IF($G47<5,tables!L$21,IF($G47>100,tables!L$32,FORECAST($G47,OFFSET(tables!L$21:L$32,MATCH($G47,tables!$C$21:$C$32,1)-1,0,2),OFFSET(tables!$C$21:$C$32,MATCH($G47,tables!$C$21:$C$32,1)-1,0,2)))),IF($G47<5,tables!L$36,IF($G47>100,tables!L$47,FORECAST($G47,OFFSET(tables!L$36:L$47,MATCH($G47,tables!$C$36:$C$47,1)-1,0,2),OFFSET(tables!$C$36:$C$47,MATCH($G47,tables!$C$36:$C$47,1)-1,0,2))))) -> 1.7247 | AY46: =IF(location=1,IF($G47<5,tables!M$21,IF($G47>100,tables!M$32,FORECAST($G47,OFFSET(tables!M$21:M$32,MATCH($G47,tables!$C$21:$C$32,1)-1,0,2),OFFSET(tables!$C$21:$C$32,MATCH($G47,tables!$C$21:$C$32,1)-1,0,2)))),IF($G47<5,tables!M$36,IF($G47>100,tables!M$47,FORECAST($G47,OFFSET(tables!M$36:M$47,MATCH($G47,tables!$C$36:$C$47,1)-1,0,2),OFFSET(tables!$C$36:$C$47,MATCH($G47,tables!$C$36:$C$47,1)-1,0,2))))) -> 2.0194
C47: 360 | E47: =IF(rr<0.12,tables!K5,IF(rr>=0.45,tables!K16,FORECAST($M$23,OFFSET(tables!K5:K16,MATCH($M$23,tables!$C$5:$C$16,1)-1,0,2),OFFSET(tables!$C$5:$C$16,MATCH($M$23,tables!$C$5:$C$16,1)-1,0,2)))) -> 1.51 | G47: =E47*15 -> 22.65 | I47: 1.24 | J47: 36.5118 | L47: 10.95354 | N47: 1.7247 | O47: 50.7837915 | Q47: 15.23513745 | S47: 2.0194 | T47: 59.461233 | V47: 17.8383699 | X47: =IF(AND(type=3,subtype=1),W*(PI()*(L/2)^2*binf+2*PI()*(L/2)*0.5*1.25)*(inf*C47*60),IF(AND(type=3,subtype=2),W*(L^2*binf+0.5*L*1.25*4)*(inf*C47*60),(L*W*binf+0.5*1.25*(2*L+2*W))*(inf*C47*60))) -> 11.81679673 | Z47: 6.021573173 | AL47: M5-D | AM47: 0 | AN47: 0.04389398832 | AO47: 11 | AP47: =IF(location=1,IF($G48<5,tables!D$21,IF($G48>100,tables!D$32,FORECAST($G48,OFFSET(tables!D$21:D$32,MATCH($G48,tables!$C$21:$C$32,1)-1,0,2),OFFSET(tables!$C$21:$C$32,MATCH($G48,tables!$C$21:$C$32,1)-1,0,2)))),IF($G48<5,tables!D$36,IF($G48>100,tables!D$47,FORECAST($G48,OFFSET(tables!D$36:D$47,MATCH($G48,tables!$C$36:$C$47,1)-1,0,2),OFFSET(tables!$C$36:$C$47,MATCH($G48,tables!$C$36:$C$47,1)-1,0,2))))) -> 0.6608 | AQ47: =IF(location=1,IF($G48<5,tables!E$21,IF($G48>100,tables!E$32,FORECAST($G48,OFFSET(tables!E$21:E$32,MATCH($G48,tables!$C$21:$C$32,1)-1,0,2),OFFSET(tables!$C$21:$C$32,MATCH($G48,tables!$C$21:$C$32,1)-1,0,2)))),IF($G48<5,tables!E$36,IF($G48>100,tables!E$47,FORECAST($G48,OFFSET(tables!E$36:E$47,MATCH($G48,tables!$C$36:$C$47,1)-1,0,2),OFFSET(tables!$C$36:$C$47,MATCH($G48,tables!$C$36:$C$47,1)-1,0,2))))) -> 0.8204 | AR47: =IF(location=1,IF($G48<5,tables!F$21,IF($G48>100,tables!F$32,FORECAST($G48,OFFSET(tables!F$21:F$32,MATCH($G48,tables!$C$21:$C$32,1)-1,0,2),OFFSET(tables!$C$21:$C$32,MATCH($G48,tables!$C$21:$C$32,1)-1,0,2)))),IF($G48<5,tables!F$36,IF($G48>100,tables!F$47,FORECAST($G48,OFFSET(tables!F$36:F$47,MATCH($G48,tables!$C$36:$C$47,1)-1,0,2),OFFSET(tables!$C$36:$C$47,MATCH($G48,tables!$C$36:$C$47,1)-1,0,2))))) -> 0.91 | AS47: =IF(location=1,IF($G48<5,tables!G$21,IF($G48>100,tables!G$32,FORECAST($G48,OFFSET(tables!G$21:G$32,MATCH($G48,tables!$C$21:$C$32,1)-1,0,2),OFFSET(tables!$C$21:$C$32,MATCH($G48,tables!$C$21:$C$32,1)-1,0,2)))),IF($G48<5,tables!G$36,IF($G48>100,tables!G$47,FORECAST($G48,OFFSET(tables!G$36:G$47,MATCH($G48,tables!$C$36:$C$47,1)-1,0,2),OFFSET(tables!$C$36:$C$47,MATCH($G48,tables!$C$36:$C$47,1)-1,0,2))))) -> 0.97 | AT47: =IF(location=1,IF($G48<5,tables!H$21,IF($G48>100,tables!H$32,FORECAST($G48,OFFSET(tables!H$21:H$32,MATCH($G48,tables!$C$21:$C$32,1)-1,0,2),OFFSET(tables!$C$21:$C$32,MATCH($G48,tables!$C$21:$C$32,1)-1,0,2)))),IF($G48<5,tables!H$36,IF($G48>100,tables!H$47,FORECAST($G48,OFFSET(tables!H$36:H$47,MATCH($G48,tables!$C$36:$C$47,1)-1,0,2),OFFSET(tables!$C$36:$C$47,MATCH($G48,tables!$C$36:$C$47,1)-1,0,2))))) -> 1.03 | AU47: =IF(location=1,IF($G48<5,tables!I$21,IF($G48>100,tables!I$32,FORECAST($G48,OFFSET(tables!I$21:I$32,MATCH($G48,tables!$C$21:$C$32,1)-1,0,2),OFFSET(tables!$C$21:$C$32,MATCH($G48,tables!$C$21:$C$32,1)-1,0,2)))),IF($G48<5,tables!I$36,IF($G48>100,tables!I$47,FORECAST($G48,OFFSET(tables!I$36:I$47,MATCH($G48,tables!$C$36:$C$47,1)-1,0,2),OFFSET(tables!$C$36:$C$47,MATCH($G48,tables!$C$36:$C$47,1)-1,0,2))))) -> 1.2392 | AV47: =IF(location=1,IF($G48<5,tables!J$21,IF($G48>100,tables!J$32,FORECAST($G48,OFFSET(tables!J$21:J$32,MATCH($G48,tables!$C$21:$C$32,1)-1,0,2),OFFSET(tables!$C$21:$C$32,MATCH($G48,tables!$C$21:$C$32,1)-1,0,2)))),IF($G48<5,tables!J$36,IF($G48>100,tables!J$47,FORECAST($G48,OFFSET(tables!J$36:J$47,MATCH($G48,tables!$C$36:$C$47,1)-1,0,2),OFFSET(tables!$C$36:$C$47,MATCH($G48,tables!$C$36:$C$47,1)-1,0,2))))) -> 1.4392 | AW47: =IF(location=1,IF($G48<5,tables!K$21,IF($G48>100,tables!K$32,FORECAST($G48,OFFSET(tables!K$21:K$32,MATCH($G48,tables!$C$21:$C$32,1)-1,0,2),OFFSET(tables!$C$21:$C$32,MATCH($G48,tables!$C$21:$C$32,1)-1,0,2)))),IF($G48<5,tables!K$36,IF($G48>100,tables!K$47,FORECAST($G48,OFFSET(tables!K$36:K$47,MATCH($G48,tables!$C$36:$C$47,1)-1,0,2),OFFSET(tables!$C$36:$C$47,MATCH($G48,tables!$C$36:$C$47,1)-1,0,2))))) -> 1.532533333 | AX47: =IF(location=1,IF($G48<5,tables!L$21,IF($G48>100,tables!L$32,FORECAST($G48,OFFSET(tables!L$21:L$32,MATCH($G48,tables!$C$21:$C$32,1)-1,0,2),OFFSET(tables!$C$21:$C$32,MATCH($G48,tables!$C$21:$C$32,1)-1,0,2)))),IF($G48<5,tables!L$36,IF($G48>100,tables!L$47,FORECAST($G48,OFFSET(tables!L$36:L$47,MATCH($G48,tables!$C$36:$C$47,1)-1,0,2),OFFSET(tables!$C$36:$C$47,MATCH($G48,tables!$C$36:$C$47,1)-1,0,2))))) -> 1.7192 | AY47: =IF(location=1,IF($G48<5,tables!M$21,IF($G48>100,tables!M$32,FORECAST($G48,OFFSET(tables!M$21:M$32,MATCH($G48,tables!$C$21:$C$32,1)-1,0,2),OFFSET(tables!$C$21:$C$32,MATCH($G48,tables!$C$21:$C$32,1)-1,0,2)))),IF($G48<5,tables!M$36,IF($G48>100,tables!M$47,FORECAST($G48,OFFSET(tables!M$36:M$47,MATCH($G48,tables!$C$36:$C$47,1)-1,0,2),OFFSET(tables!$C$36:$C$47,MATCH($G48,tables!$C$36:$C$47,1)-1,0,2))))) -> 2.0084
C48: 600 | E48: =IF(rr<0.12,tables!L5,IF(rr>=0.45,tables!L16,FORECAST($M$23,OFFSET(tables!L5:L16,MATCH($M$23,tables!$C$5:$C$16,1)-1,0,2),OFFSET(tables!$C$5:$C$16,MATCH($M$23,tables!$C$5:$C$16,1)-1,0,2)))) -> 1.68 | G48: =E48*15 -> 25.2 | I48: 1.2392 | J48: 40.596192 | L48: 12.1788576 | N48: 1.7192 | O48: 56.320992 | Q48: 16.8962976 | S48: 2.0084 | T48: 65.795184 | V48: 19.7385552 | X48: =IF(AND(type=3,subtype=1),W*(PI()*(L/2)^2*binf+2*PI()*(L/2)*0.5*1.25)*(inf*C48*60),IF(AND(type=3,subtype=2),W*(L^2*binf+0.5*L*1.25*4)*(inf*C48*60),(L*W*binf+0.5*1.25*(2*L+2*W))*(inf*C48*60))) -> 19.69466121 | Z48: 0.04389398832 | AL48: M10-D | AM48: 0 | AN48: 0 | AO48: 12 | AP48: =IF(location=1,IF($G49<5,tables!D$21,IF($G49>100,tables!D$32,FORECAST($G49,OFFSET(tables!D$21:D$32,MATCH($G49,tables!$C$21:$C$32,1)-1,0,2),OFFSET(tables!$C$21:$C$32,MATCH($G49,tables!$C$21:$C$32,1)-1,0,2)))),IF($G49<5,tables!D$36,IF($G49>100,tables!D$47,FORECAST($G49,OFFSET(tables!D$36:D$47,MATCH($G49,tables!$C$36:$C$47,1)-1,0,2),OFFSET(tables!$C$36:$C$47,MATCH($G49,tables!$C$36:$C$47,1)-1,0,2))))) -> 0.6809 | AQ48: =IF(location=1,IF($G49<5,tables!E$21,IF($G49>100,tables!E$32,FORECAST($G49,OFFSET(tables!E$21:E$32,MATCH($G49,tables!$C$21:$C$32,1)-1,0,2),OFFSET(tables!$C$21:$C$32,MATCH($G49,tables!$C$21:$C$32,1)-1,0,2)))),IF($G49<5,tables!E$36,IF($G49>100,tables!E$47,FORECAST($G49,OFFSET(tables!E$36:E$47,MATCH($G49,tables!$C$36:$C$47,1)-1,0,2),OFFSET(tables!$C$36:$C$47,MATCH($G49,tables!$C$36:$C$47,1)-1,0,2))))) -> 0.83045 | AR48: =IF(location=1,IF($G49<5,tables!F$21,IF($G49>100,tables!F$32,FORECAST($G49,OFFSET(tables!F$21:F$32,MATCH($G49,tables!$C$21:$C$32,1)-1,0,2),OFFSET(tables!$C$21:$C$32,MATCH($G49,tables!$C$21:$C$32,1)-1,0,2)))),IF($G49<5,tables!F$36,IF($G49>100,tables!F$47,FORECAST($G49,OFFSET(tables!F$36:F$47,MATCH($G49,tables!$C$36:$C$47,1)-1,0,2),OFFSET(tables!$C$36:$C$47,MATCH($G49,tables!$C$36:$C$47,1)-1,0,2))))) -> 0.91045 | AS48: =IF(location=1,IF($G49<5,tables!G$21,IF($G49>100,tables!G$32,FORECAST($G49,OFFSET(tables!G$21:G$32,MATCH($G49,tables!$C$21:$C$32,1)-1,0,2),OFFSET(tables!$C$21:$C$32,MATCH($G49,tables!$C$21:$C$32,1)-1,0,2)))),IF($G49<5,tables!G$36,IF($G49>100,tables!G$47,FORECAST($G49,OFFSET(tables!G$36:G$47,MATCH($G49,tables!$C$36:$C$47,1)-1,0,2),OFFSET(tables!$C$36:$C$47,MATCH($G49,tables!$C$36:$C$47,1)-1,0,2))))) -> 0.97 | AT48: =IF(location=1,IF($G49<5,tables!H$21,IF($G49>100,tables!H$32,FORECAST($G49,OFFSET(tables!H$21:H$32,MATCH($G49,tables!$C$21:$C$32,1)-1,0,2),OFFSET(tables!$C$21:$C$32,MATCH($G49,tables!$C$21:$C$32,1)-1,0,2)))),IF($G49<5,tables!H$36,IF($G49>100,tables!H$47,FORECAST($G49,OFFSET(tables!H$36:H$47,MATCH($G49,tables!$C$36:$C$47,1)-1,0,2),OFFSET(tables!$C$36:$C$47,MATCH($G49,tables!$C$36:$C$47,1)-1,0,2))))) -> 1.02955 | AU48: =IF(location=1,IF($G49<5,tables!I$21,IF($G49>100,tables!I$32,FORECAST($G49,OFFSET(tables!I$21:I$32,MATCH($G49,tables!$C$21:$C$32,1)-1,0,2),OFFSET(tables!$C$21:$C$32,MATCH($G49,tables!$C$21:$C$32,1)-1,0,2)))),IF($G49<5,tables!I$36,IF($G49>100,tables!I$47,FORECAST($G49,OFFSET(tables!I$36:I$47,MATCH($G49,tables!$C$36:$C$47,1)-1,0,2),OFFSET(tables!$C$36:$C$47,MATCH($G49,tables!$C$36:$C$47,1)-1,0,2))))) -> 1.21865 | AV48: =IF(location=1,IF($G49<5,tables!J$21,IF($G49>100,tables!J$32,FORECAST($G49,OFFSET(tables!J$21:J$32,MATCH($G49,tables!$C$21:$C$32,1)-1,0,2),OFFSET(tables!$C$21:$C$32,MATCH($G49,tables!$C$21:$C$32,1)-1,0,2)))),IF($G49<5,tables!J$36,IF($G49>100,tables!J$47,FORECAST($G49,OFFSET(tables!J$36:J$47,MATCH($G49,tables!$C$36:$C$47,1)-1,0,2),OFFSET(tables!$C$36:$C$47,MATCH($G49,tables!$C$36:$C$47,1)-1,0,2))))) -> 1.4182 | AW48: =IF(location=1,IF($G49<5,tables!K$21,IF($G49>100,tables!K$32,FORECAST($G49,OFFSET(tables!K$21:K$32,MATCH($G49,tables!$C$21:$C$32,1)-1,0,2),OFFSET(tables!$C$21:$C$32,MATCH($G49,tables!$C$21:$C$32,1)-1,0,2)))),IF($G49<5,tables!K$36,IF($G49>100,tables!K$47,FORECAST($G49,OFFSET(tables!K$36:K$47,MATCH($G49,tables!$C$36:$C$47,1)-1,0,2),OFFSET(tables!$C$36:$C$47,MATCH($G49,tables!$C$36:$C$47,1)-1,0,2))))) -> 1.511233333 | AX48: =IF(location=1,IF($G49<5,tables!L$21,IF($G49>100,tables!L$32,FORECAST($G49,OFFSET(tables!L$21:L$32,MATCH($G49,tables!$C$21:$C$32,1)-1,0,2),OFFSET(tables!$C$21:$C$32,MATCH($G49,tables!$C$21:$C$32,1)-1,0,2)))),IF($G49<5,tables!L$36,IF($G49>100,tables!L$47,FORECAST($G49,OFFSET(tables!L$36:L$47,MATCH($G49,tables!$C$36:$C$47,1)-1,0,2),OFFSET(tables!$C$36:$C$47,MATCH($G49,tables!$C$36:$C$47,1)-1,0,2))))) -> 1.6973 | AY48: =IF(location=1,IF($G49<5,tables!M$21,IF($G49>100,tables!M$32,FORECAST($G49,OFFSET(tables!M$21:M$32,MATCH($G49,tables!$C$21:$C$32,1)-1,0,2),OFFSET(tables!$C$21:$C$32,MATCH($G49,tables!$C$21:$C$32,1)-1,0,2)))),IF($G49<5,tables!M$36,IF($G49>100,tables!M$47,FORECAST($G49,OFFSET(tables!M$36:M$47,MATCH($G49,tables!$C$36:$C$47,1)-1,0,2),OFFSET(tables!$C$36:$C$47,MATCH($G49,tables!$C$36:$C$47,1)-1,0,2))))) -> 1.9664
C49: 1440 | E49: =IF(rr<0.12,tables!M5,IF(rr>=0.45,tables!M16,FORECAST($M$23,OFFSET(tables!M5:M16,MATCH($M$23,tables!$C$5:$C$16,1)-1,0,2),OFFSET(tables!$C$5:$C$16,MATCH($M$23,tables!$C$5:$C$16,1)-1,0,2)))) -> 2.03 | G49: =E49*15 -> 30.45 | I49: 1.21865 | J49: 48.24026025 | L49: 14.47207808 | N49: 1.6973 | O49: 67.1876205 | Q49: 20.15628615 | S49: 1.9664 | T49: 77.839944 | V49: 23.3519832 | X49: =IF(AND(type=3,subtype=1),W*(PI()*(L/2)^2*binf+2*PI()*(L/2)*0.5*1.25)*(inf*C49*60),IF(AND(type=3,subtype=2),W*(L^2*binf+0.5*L*1.25*4)*(inf*C49*60),(L*W*binf+0.5*1.25*(2*L+2*W))*(inf*C49*60))) -> 47.26718691 | Z49: 0 | AL49: M20-D
C50: * Z2 is growth factor from M5 rainfalls | AL50: M30-D
C51: =IF(AN30=1,"Invalid measurements. Click the grey question mark below to see what measurements are required. Also refer to BRE 365 for details.","") ->  | AL51: M50-D
C52: SOAKAGE TRIAL PIT INFILTRATION TEST RESULTS | AL52: M100-D
C53: water level measurement No: | I53: 1 | J53: 2 | K53: 3 | L53: 4 | M53: 5 | N53: 6 | O53: 7 | P53: 8 | Q53: 9 | R53: 10 | S53: 11 | T53: 12 | U53: 13 | V53: 14 | W53: 15 | X53: 16 | Y53: 17 | Z53: 18 | AA53: 19 | AJ53: selected: | AL53: =MATCH(I37,AL42:AL52,0) -> 7 | AM53: =MATCH(N37,AL42:AL52,0) -> 10 | AN53: =MATCH(S37,AL42:AL52,0) -> 11
C54: Soakage Trial 1 | E54: time [min] = | I54: 0 | J54: 11 | K54: 25 | L54: 44 | M54: 80 | N54: 102 | O54: 150 | P54: 190 | AP54: 1 | AQ54: 2 | AR54: 3
E55: depth to water [m] = | I55: 1 | J55: 1.38 | K55: 1.7 | L55: 1.6 | M55: 2 | N55: 2.13 | O55: 2.4 | P55: 2.5 | AP55: =IF($AL$57=MIN(I55:AA55),INDEX(I54:AA54,1,MATCH($AL$57,(I55:AA55),0)),FORECAST($AL$57,OFFSET(I54:AA54,0,MATCH($AL$57,I55:AA55,1)-1,1,2),OFFSET(I55:AA55,0,MATCH($AL$57,I55:AA55,1)-1,1,2))) -> 10.85526316 | AQ55: =IF($AL$57=MIN(I57:AA57),INDEX(I56:AA56,1,MATCH($AL$57,(I57:AA57),0)),FORECAST($AL$57,OFFSET(I56:AA56,0,MATCH($AL$57,I57:AA57,1)-1,1,2),OFFSET(I57:AA57,0,MATCH($AL$57,I57:AA57,1)-1,1,2))) ->  | AR55: =IF($AL$57=MIN(I59:AA59),INDEX(I58:AA58,1,MATCH($AL$57,(I59:AA59),0)),FORECAST($AL$57,OFFSET(I58:AA58,0,MATCH($AL$57,I59:AA59,1)-1,1,2),OFFSET(I59:AA59,0,MATCH($AL$57,I59:AA59,1)-1,1,2))) -> 
C56: Soakage Trial 2 | E56: time [min] = | AJ56: ap50 | AK56: =Lt*Wt+0.5*(Lt*Dteff*2+Wt*Dteff*2) -> 7.5 | AP56: =IF($AL$58=MAX(I55:AA55),INDEX(I54:AA54,1,MATCH($AL$58,(I55:AA55),0)),FORECAST($AL$58,OFFSET(I54:AA54,0,MATCH($AL$58,I55:AA55,1)-1,1,2),OFFSET(I55:AA55,0,MATCH($AL$58,I55:AA55,1)-1,1,2))) -> 101.1538462 | AQ56: =IF($AL$58=MAX(I57:AA57),INDEX(I56:AA56,1,MATCH($AL$58,(I57:AA57),0)),FORECAST($AL$58,OFFSET(I56:AA56,0,MATCH($AL$58,I57:AA57,1)-1,1,2),OFFSET(I57:AA57,0,MATCH($AL$58,I57:AA57,1)-1,1,2))) ->  | AR56: =IF($AL$58=MAX(I59:AA59),INDEX(I58:AA58,1,MATCH($AL$58,(I59:AA59),0)),FORECAST($AL$58,OFFSET(I58:AA58,0,MATCH($AL$58,I59:AA59,1)-1,1,2),OFFSET(I59:AA59,0,MATCH($AL$58,I59:AA59,1)-1,1,2))) -> 
E57: depth to water [m] = | AJ57: h75 | AK57: =25%*Dteff -> 0.375 | AL57: =AK57+Dtp -> 1.375 | AN57: t@75
C58: Soakage Trial 3 | E58: time [min] = | AJ58: h25 | AK58: =75%*Dteff -> 1.125 | AL58: =AK58+Dtp -> 2.125 | AN58: t@25 | AO58: tp75-25 | AP58: =IF(AND(SUM(I54:AA54)>0,SUM(I55:AA55)>0),AP56-AP55,1440) -> 90.298583 | AQ58: =IF(AND(SUM(I56:AA56)>0,SUM(I57:AA57)>0),AQ56-AQ55,1440) -> 1440 | AR58: =IF(AND(SUM(I58:AA58)>0,SUM(I59:AA59)>0),AR56-AR55,1440) -> 1440
E59: depth to water [m] = | AJ59: Vp75-25 | AK59: =(AL58-AL57)*Lt*Wt*_vol2/100 -> 1.8 | AO59: f | AP59: =IF(AND(SUM(I54:AA54)>0,SUM(I55:AA55)>0),$AK$59/($AK$56*AP58*60),1) -> 4.429748361e-05 | AQ59: =IF(AND(SUM(I56:AA56)>0,SUM(I57:AA57)>0),$AK$59/($AK$56*AQ58*60),1) -> 1 | AR59: =IF(AND(SUM(I58:AA58)>0,SUM(I59:AA59)>0),$AK$59/($AK$56*AR58*60),1) -> 1 | AS59: =MIN(AP59:AR59) -> 4.429748361e-05
C61: Spreadsheet provided by: www.YourSpreadsheets.co.uk | AA61: calculations are based on BRE Guidelines (Digest 365)

Sheet from author
B1: Version: 1.3. - FREE LITE VERSION | K1: © 2012-2019 Damian Janicki
C3: For latest updates and news visit: | G3: Contact me at:
C4: www.YourSpreadsheets.co.uk | G4: info@yourspreadsheets.co.uk
C7: General information: NOTE: This spreadsheet contains macros.
C13: The Author takes no liability for use of this spreadsheet and gives no guarantee that it is error free. In no event shall the Author be responsible for any special, incidental or consequential damages whatsoever arising from the use of this spreadsheet, even if the Author has been advised of the possibility of such damage. This spreadsheet is a freeware and can be distributed freely but only in its original form. Reverse-engineering, decompiling or disassembling of this spreadsheet is not allowable. By using this spreadsheet you understand and agree with the above terms and conditions. You also acknowledge that you do not become the owner of this spreadsheet. Damian Janicki
C35: This is a Free Lite Version. The full version of the spreadsheet allows to: - Input your company information, change logo and change header information; - Change rainfall return period 'R'; - Change soakaway pit depth.
C42: This spreadsheet is based on BRE Guidelines (Digest 365 2007). Changelog: 20.06.2019 - v.1.3. - added pop-up messages and diagrams to explain levels in soakage trial pit and how to make measurements during infiltration test. It is now easier to find the option to design soakaways from modular geocellular units. 20.10.2012 - v.1.2. - moved all calculations to one worksheet. 20.10.2011 - v.1.1. - official release of the spreadsheets.

Sheet tables (hidden)
B2: Values of Factor Z1 for rainfall duration D and ratio r (for 5y return period)
D3: rainfall duration D (min)
D4: 5 | E4: 10 | F4: 15 | G4: 30 | H4: 60 | I4: 120 | J4: 240 | K4: 360 | L4: 600 | M4: 1440
B5: rainfall ratio r | C5: 0.12 | D5: 0.22 | E5: 0.34 | F5: 0.45 | G5: 0.67 | H5: 1 | I5: 1.48 | J5: 2.17 | K5: 2.75 | L5: 3.7 | M5: 6
C6: 0.15 | D6: 0.25 | E6: 0.38 | F6: 0.48 | G6: 0.69 | H6: 1 | I6: 1.42 | J6: 2.02 | K6: 2.46 | L6: 3.23 | M6: 4.9
C7: 0.18 | D7: 0.27 | E7: 0.41 | F7: 0.51 | G7: 0.71 | H7: 1 | I7: 1.36 | J7: 1.86 | K7: 2.25 | L7: 2.86 | M7: 4.3
C8: 0.21 | D8: 0.29 | E8: 0.43 | F8: 0.54 | G8: 0.73 | H8: 1 | I8: 1.33 | J8: 1.77 | K8: 2.12 | L8: 2.62 | M8: 3.6
C9: 0.24 | D9: 0.31 | E9: 0.46 | F9: 0.56 | G9: 0.75 | H9: 1 | I9: 1.3 | J9: 1.71 | K9: 2 | L9: 2.4 | M9: 3.35
C10: 0.27 | D10: 0.33 | E10: 0.48 | F10: 0.58 | G10: 0.76 | H10: 1 | I10: 1.27 | J10: 1.64 | K10: 1.88 | L10: 2.24 | M10: 3.1
C11: 0.3 | D11: 0.34 | E11: 0.49 | F11: 0.59 | G11: 0.77 | H11: 1 | I11: 1.25 | J11: 1.57 | K11: 1.78 | L11: 2.12 | M11: 2.84
C12: 0.33 | D12: 0.35 | E12: 0.5 | F12: 0.61 | G12: 0.78 | H12: 1 | I12: 1.23 | J12: 1.53 | K12: 1.73 | L12: 2.04 | M12: 2.6
C13: 0.36 | D13: 0.36 | E13: 0.51 | F13: 0.62 | G13: 0.79 | H13: 1 | I13: 1.22 | J13: 1.48 | K13: 1.67 | L13: 1.9 | M13: 2.42
C14: 0.39 | D14: 0.37 | E14: 0.52 | F14: 0.63 | G14: 0.8 | H14: 1 | I14: 1.21 | J14: 1.46 | K14: 1.62 | L14: 1.82 | M14: 2.28
C15: 0.42 | D15: 0.38 | E15: 0.53 | F15: 0.64 | G15: 0.81 | H15: 1 | I15: 1.2 | J15: 1.42 | K15: 1.57 | L15: 1.74 | M15: 2.16
C16: 0.45 | D16: 0.39 | E16: 0.54 | F16: 0.65 | G16: 0.82 | H16: 1 | I16: 1.19 | J16: 1.38 | K16: 1.51 | L16: 1.68 | M16: 2.03
B19: Growth factor Z2 for M?? rainfalls from M5 rainfalls | I19: 10 | J19: 20 | K19: 30 | L19: 50 | M19: 100
D20: M1 | E20: M2 | F20: M3 | G20: M4 | H20: M5 | I20: M10 | J20: M20 | K20: M30 | L20: M50 | M20: M100
B21: M5 rainfall (mm) | C21: 5 | D21: 0.62 | E21: 0.79 | F21: 0.89 | G21: 0.97 | H21: 1.02 | I21: 1.19 | J21: 1.36 | K21: =(L21-J21)/3+J21 -> 1.426666667 | L21: 1.56 | M21: 1.79
C22: 10 | D22: 0.61 | E22: 0.79 | F22: 0.9 | G22: 0.97 | H22: 1.03 | I22: 1.22 | J22: 1.41 | K22: =(L22-J22)/3+J22 -> 1.49 | L22: 1.65 | M22: 1.91
C23: 15 | D23: 0.62 | E23: 0.8 | F23: 0.9 | G23: 0.97 | H23: 1.03 | I23: 1.24 | J23: 1.44 | K23: 1.526666667 | L23: 1.7 | M23: 1.99
C24: 20 | D24: 0.64 | E24: 0.81 | F24: 0.9 | G24: 0.97 | H24: 1.03 | I24: 1.24 | J24: 1.45 | K24: 1.543333333 | L24: 1.73 | M24: 2.03
C25: 25 | D25: 0.66 | E25: 0.82 | F25: 0.91 | G25: 0.97 | H25: 1.03 | I25: 1.24 | J25: 1.44 | K25: 1.533333333 | L25: 1.72 | M25: 2.01
C26: 30 | D26: 0.68 | E26: 0.83 | F26: 0.91 | G26: 0.97 | H26: 1.03 | I26: 1.22 | J26: 1.42 | K26: 1.513333333 | L26: 1.7 | M26: 1.97
C27: 40 | D27: 0.7 | E27: 0.84 | F27: 0.92 | G27: 0.97 | H27: 1.02 | I27: 1.19 | J27: 1.38 | K27: 1.466666667 | L27: 1.64 | M27: 1.89
C28: 50 | D28: 0.72 | E28: 0.85 | F28: 0.93 | G28: 0.98 | H28: 1.02 | I28: 1.17 | J28: 1.34 | K28: 1.42 | L28: 1.58 | M28: 1.81
C29: 75 | D29: 0.76 | E29: 0.87 | F29: 0.93 | G29: 0.98 | H29: 1.02 | I29: 1.14 | J29: 1.28 | K29: 1.343333333 | L29: 1.47 | M29: 1.64
C30: 100 | D30: 0.78 | E30: 0.88 | F30: 0.94 | G30: 0.98 | H30: 1.02 | I30: 1.13 | J30: 1.25 | K30: 1.3 | L30: 1.4 | M30: 1.54
C31: 150 | D31: 0.78 | E31: 0.88 | F31: 0.94 | G31: 0.98 | H31: 1.01 | I31: 1.12 | J31: 1.21 | K31: 1.25 | L31: 1.33 | M31: 1.45
C32: 200 | D32: 0.78 | E32: 0.88 | F32: 0.94 | G32: 0.98 | H32: 1.01 | I32: 1.11 | J32: 1.19 | K32: 1.226666667 | L32: 1.3 | M32: 1.4
D33: England & Wales
D35: M1 | E35: M2 | F35: M3 | G35: M4 | H35: M5 | I35: M10 | J35: M20 | K35: M30 | L35: M50 | M35: M100
B36: M5 rainfall (mm) | C36: 5 | D36: 0.67 | E36: 0.82 | F36: 0.91 | G36: 0.98 | H36: 1.02 | I36: 1.17 | J36: 1.35 | K36: =(L36-J36)/3+J36 -> 1.44 | L36: 1.62 | M36: 1.86
C37: 10 | D37: 0.68 | E37: 0.82 | F37: 0.91 | G37: 0.98 | H37: 1.03 | I37: 1.19 | J37: 1.39 | K37: =(L37-J37)/3+J37 -> 1.49 | L37: 1.69 | M37: 1.97
C38: 15 | D38: 0.69 | E38: 0.83 | F38: 0.91 | G38: 0.97 | H38: 1.03 | I38: 1.2 | J38: 1.39 | K38: 1.493333333 | L38: 1.7 | M38: 1.98
C39: 20 | D39: 0.7 | E39: 0.84 | F39: 0.92 | G39: 0.97 | H39: 1.02 | I39: 1.19 | J39: 1.38 | K39: 1.473333333 | L39: 1.66 | M39: 1.93
C40: 25 | D40: 0.71 | E40: 0.84 | F40: 0.92 | G40: 0.98 | H40: 1.02 | I40: 1.18 | J40: 1.37 | K40: 1.46 | L40: 1.64 | M40: 1.89
C41: 30 | D41: 0.72 | E41: 0.85 | F41: 0.92 | G41: 0.98 | H41: 1.02 | I41: 1.18 | J41: 1.36 | K41: 1.443333333 | L41: 1.61 | M41: 1.85
C42: 40 | D42: 0.74 | E42: 0.86 | F42: 0.93 | G42: 0.98 | H42: 1.02 | I42: 1.17 | J42: 1.34 | K42: 1.413333333 | L42: 1.56 | M42: 1.77
C43: 50 | D43: 0.75 | E43: 0.87 | F43: 0.93 | G43: 0.98 | H43: 1.02 | I43: 1.16 | J43: 1.3 | K43: 1.373333333 | L43: 1.52 | M43: 1.72
C44: 75 | D44: 0.77 | E44: 0.88 | F44: 0.94 | G44: 0.98 | H44: 1.02 | I44: 1.14 | J44: 1.27 | K44: 1.33 | L44: 1.45 | M44: 1.62
C45: 100 | D45: 0.78 | E45: 0.88 | F45: 0.94 | G45: 0.98 | H45: 1.02 | I45: 1.13 | J45: 1.24 | K45: 1.293333333 | L45: 1.4 | M45: 1.54
C46: 150 | D46: 0.79 | E46: 0.89 | F46: 0.94 | G46: 0.98 | H46: 1.02 | I46: 1.11 | J46: 1.2 | K46: 1.243333333 | L46: 1.33 | M46: 1.45
C47: 200 | D47: 0.8 | E47: 0.89 | F47: 0.95 | G47: 0.99 | H47: 1.01 | I47: 1.1 | J47: 1.18 | K47: 1.22 | L47: 1.3 | M47: 1.4
D48: Scotland and N Ireland
